Workbook

Sheet Questionnaire (hidden)
D3: Request for PBM Proposal (RFP) for Arlington County Government
D4: Questionnaire and Minimum Qualifications
D6: To Vendor: Use Column G to provide a brief explanation. However if the length of the explanation is greater than 50 characters including spaces, you must use the "Explanation" worksheet to provide your detail explanation. Please note, your explanations must be limited to 400 characters or less
D8: PBM RFP 2020
A10: I. | D10: GENERAL VENDOR INFORMATION Corporate Headquarters | E10: Format Type | F10: Response | G10: Explanation
B11: 1. | D11: PBM Name | E11: Text
B12: =B11+1 -> 2. | D12: Street Address | E12: Text
B13: =B12+1 -> 3. | D13: City | E13: Text
B14: =B13+1 -> 4. | D14: State | E14: Text
B15: =B14+1 -> 5. | D15: Zip Code | E15: Text
B16: =B15+1 -> 6. | D16: Web Address | E16: Text
D18: Contacts | E18: Format Type | F18: Response | G18: Explanation
D19: Please indicate the primary and secondary contact who will answer questions related to this RFP.
B20: =B16+1 -> 7. | D20: Primary Contact
C21: a. | D21: Name | E21: Text
C22: b. | D22: Title | E22: Text
C23: c. | D23: Address | E23: Text
C24: d. | D24: City | E24: Text
C25: e. | D25: State | E25: Text
C26: f. | D26: Zip | E26: Text
C27: g. | D27: Phone Number | E27: Text
C28: h. | D28: Fax Number | E28: Text
C29: i. | D29: E-mail Address | E29: Text
B30: =B20+1 -> 8. | D30: Secondary Contact
C31: a. | D31: Name | E31: Text
C32: b. | D32: Title | E32: Text
C33: c. | D33: Address | E33: Text
C34: d. | D34: City | E34: Text
C35: e. | D35: State | E35: Text
C36: f. | D36: Zip | E36: Text
C37: g. | D37: Phone Number | E37: Text
C38: h. | D38: Fax Number | E38: Text
C39: i. | D39: E-mail Address | E39: Text
D40: Vendor References
B41: 9. | D41: Please provide three current client references for the proposed account team, preferably for clients of similar size and complexity as [Client Name] for whom you provide integrated retail and mail services.
C42: a. | D42: Company | E42: Text
D43: Contact Person | E43: Text
D44: Title | E44: Text
D45: Phone Number | E45: Text
D46: Email Address | E46: Text
C47: b. | D47: Company | E47: Text
D48: Contact Person | E48: Text
D49: Title | E49: Text
D50: Phone Number | E50: Text
D51: Email Address | E51: Text
C52: c. | D52: Company | E52: Text
D53: Contact Person | E53: Text
D54: Title | E54: Text
D55: Phone Number | E55: Text
D56: Email Address | E56: Text
B57: 10. | D57: Please provide two references for plan sponsors who terminated your services within the last two years, preferably plans of similar size and complexity as [Client Name].
C58: a. | D58: Company | E58: Text
D59: Contact Person | E59: Text
D60: Title | E60: Text
D61: Phone Number | E61: Text
D62: Email Address | E62: Text
D63: Program Termination Date | E63: Text
C64: b. | D64: Company | E64: Text
D65: Contact Person | E65: Text
D66: Title | E66: Text
D67: Phone Number | E67: Text
D68: Email Address | E68: Text
D69: Program Termination Date | E69: Text
D70: Vendor Accreditations | E70: Format Type | F70: Response | G70: Explanation
B71: =B57+1 -> 11. | D71: Does your firm currently have URAC accreditation for:
C72: a. | D72: Pharmacy Benefit Management | E72: Yes / No
C73: b. | D73: Specialty Pharmacy | E73: Yes / No
C74: c. | D74: Mail Order Pharmacy | E74: Yes / No
C75: d. | D75: Expiration date of accreditation/certification | E75: Date
B76: =B71+1 -> 12. | C76: a. | D76: NCQA Disease Management Program Accreditation | E76: Yes / No
C77: b. | D77: Expiration date of accreditation/certification | E77: Date
B78: =B76+1 -> 13. | C78: a. | D78: NCQA Utilization Management Certification | E78: Yes / No
C79: b. | D79: Expiration date of accreditation/certification | E79: Date
B80: =B78+1 -> 14. | D80: List any other accreditations for which your organization has been certified: | E80: Text
B81: =B80+1 -> 15. | D81: CMS Star Rating for 2018 (Scale of 5; 5 being best) | E81: Text
A82: II. | D82: Bidding Requirements
D83: Minimum Qualifications | E83: Format Type | F83: Response | G83: Explanation
B84: 1. | D84: A current business license and/or other required certifications necessary to operate in the locations of business operations. | E84: Confirm
B85: =B84+1 -> 2. | D85: A network of pharmacies meeting GeoAccess standards as listed below:
C86: a. | D86: Retail 30 Pharmacies – Urban: 1 in 1.5 miles | E86: Confirm
C87: b. | D87: Retail 30 Pharmacies – Suburban: 1 in 3 miles | E87: Confirm
C88: c. | D88: Retail 30 Pharmacies – Rural: 1 in 10 miles | E88: Confirm
C89: d. | D89: Retail 90 Pharmacies – Urban: 1 in 1.5 miles | E89: Confirm
C90: e. | D90: Retail 90 Pharmacies – Suburban: 1 in 3 miles | E90: Confirm
C91: f. | D91: Retail 90 Pharmacies – Rural: 1 in 10 miles | E91: Confirm
B92: =B85+1 -> 3. | D92: Offer a self-insured pharmacy benefits plan. | E92: Confirm
B93: =B92+1 -> 4. | D93: Service at a minimum three large employer groups, i.e., clients of 50,000 subscribers (employees + retirees, excluding dependents) or more. | E93: Confirm
B94: 5. | D94: All pharmacists, registered nurses, care managers, physician reviewers, and allied health team members must be appropriately licensed. | E94: Confirm
B95: 6. | D95: Current accreditation Utilization Review Accreditation Committee (URAC). | E95: Confirm
B96: 7. | D96: Current membership in Proposer’s Book of Business must be a minimum of 3 million participants. | E96: Confirm
B97: =B96+1 -> 8. | D97: Coordinate payments for Medicare Part B drugs directly with Medicare for both retail and mail order pharmacy claims. | E97: Confirm
D98: General | E98: Format Type | F98: Response | G98: Explanation
D99: Aon requires completion of this section to assess your ability to meet its specific standards and conditions. If your answer is "Agree", you acknowledge your willingness to incorporate the standard, exactly as worded here, into a final contract. Additionally, you acknowledge that the final financial proposal is reflective of providing these services as defined by Aon within this RFP. Any deviation to each standard will be considered a "No" answer (even if you select Yes) and will be scored as such. - If your answer is "Partial Agree/Disagree", please explain the specific aspect of the requirement you do not agree with and why. Note that exceptions may be cause for elimination from further consideration.
B100: =B97+1 -> 9. | D100: You agree to the following statements: (i) Information provided in accordance with RFP is the only information that may be submitted as part of your offer. (ii) NO additional documentation may be submitted (or incorporated by reference) unless specifically requested and/or approved by Aon. (iii) Any additional documentation provided by you will not be reviewed, will not modify or condition your offer, and will not be incorporated into the contract unless specifically requested by Aon . (iv) Any deviations from the requested terms and conditions in this RFP must be expressly stated within the space provided in this RFP. (v) Any failure to comply with these requirements constitutes grounds for rejection of your proposal. | E100: Confirm
B101: =B100+1 -> 10. | D101: If selected as a finalist or as requested during the bidding process, you will provide a detailed contract draft that reflects all commitments made in the bid, word for word, with a separate index document that specifies each commitment's location within the contract draft. Your organization will provide this document within ten (10) business days following the request. Aon shall have the final determination on the materiality to the final contract of each question in this RFP. Failure to comply with this requirement constitutes grounds for rejection of your proposal. | E101: Confirm
B102: =B101+1 -> 11. | D102: You will disclose and certify all sources of revenue on an annual basis. | E102: Fully Agree / Partial Agree / Disagree
B103: =B102+1 -> 12. | D103: Your standard policy is to ensure that "once a generic, always a generic." In other words, members will pay a generic copay for single-source and multi-source generics regardless of your drug-type classification policy. | E103: Fully Agree / Partial Agree / Disagree
B104: 13. | D104: You use the "maintenance medication indicator" provided in a nationally recognized drug information source (e.g., Medispan) to identify/define "maintenance medications" for purposes of a mandatory mail program, a program that charges a penalty for refills obtained at retail pharmacies instead of mail, a traditional retail 90 program, or a "Mail at Retail" program that allows up to a 90 day supply of maintenance drugs to be dispensed from certain retail pharmacies with mail-like pricing. | E104: Fully Agree / Partial Agree / Disagree
B105: =B104+1 -> 14. | D105: In the event there are changes in the marketplace to the pricing benchmark (e.g., AWP), methodology used to determine a drug's ingredient cost, or the pricing source used for [Client Name], even if you use an alternate pricing source for other clients, you will notify [Client Name] at least 120 calendar days in advance of the effective date of any such change and provide an analysis that demonstrates that costs will not increase as a result of the change through the contract term based on up to 12 months worth of data. Your organization must provide full documentation justifying the reason for such change and the adjusted terms must be agreed upon before any changes are made. The terms will be adjusted accordingly to provide an equivalent ingredient cost after the change to [Client Name]. | E105: Fully Agree / Partial Agree / Disagree
B106: =B105+1 -> 15. | D106: You agree that amounts owed to [Client Name] during the course of the contract term, including but not limited to Manufacturer Payments, guarantee shortfalls, recoveries identified during claims audits, will be paid by the appropriate due date. Any amounts unpaid 10 calendar days after the stated due date will bear interest at the greater of LIBOR plus 1% per month or the highest interest rate allowed by law. | E106: Fully Agree / Partial Agree / Disagree
B107: 16. | D107: Your organization can administer [Client Name]'s current benefit designs and provisions as defined in attachment "[Client Name] Benefit Designs". This includes and is not limited to your ability to administer integrated medical and Rx deductibles and out of pocket maximums on a real time basis for qualified HDHPs and other plan types. If you cannot administer specific provisions for [Client Name], please identify those in a separate attachment and specify. | E107: Fully Agree / Partial Agree / Disagree
A109: II. | D109: Officer Statement | E109: Format Type | F109: Response | G109: Explanation
B110: 1. | D110: You acknowledge that the response provided to this proposal in entirety will become part of the contract with Aon and [Client Name]. If any part of the contract does not agree with the response provided herein, you will amend the contract or defer to the proposal. | E110: Fully Agree / Partial Agree / Disagree
B111: =B110+1 -> 2. | D111: Your completed proposal contains the form (included in the "Officer Statement" worksheet), signed by a company officer, attesting to compliance with RFP specifications and the accuracy of all responses. | E111: Confirmed

Sheet Technical Questionnaire (hidden)
D3: =Questionnaire!D3 -> Request for PBM Proposal (RFP) for Arlington County Government
D4: Technical
D6: To Vendor: Use Column G to provide a brief explanation. However if the length of the explanation is greater than 50 characters including spaces, you must use the "Explanation" worksheet to provide your detail explanation. Please note, your explanations must be limited to 400 characters or less
D8: Technical Questionnaire | E8: Format Type | F8: Response | G8: Explanation
A9: I. | D9: [Client Name] Payment Terms
B10: 1. | D10: You will not require an advance deposit and no imprest balance from [Client Name]. | E10: Fully Agree / Partial Agree / Disagree
B11: =B10+1 -> 2. | D11: [Client Name] will receive/pay Claim invoices on a biweekly (every two weeks) basis. | E11: Fully Agree / Partial Agree / Disagree
B12: =B11+1 -> 3. | D12: You will allow [Client Name] 5 business days to pay claim invoices. | E12: Fully Agree / Partial Agree / Disagree
B13: 4. | D13: [Client Name] will pay Administrative Fees on a monthly basis. | E13: Fully Agree / Partial Agree / Disagree
B14: 5. | D14: You will allow [Client Name] 15 business days to pay Administrative Fees | E14: Fully Agree / Partial Agree / Disagree
B15: 6. | D15: You will be flexible in accommodating the specific banking requirements of [Client Name]. | E15: Fully Agree / Partial Agree / Disagree
B16: 7. | D16: You will provide detailed account structure reporting of claims, invoiced amounts and Manufacturer Payments for corporate and government accounting. | E16: Fully Agree / Partial Agree / Disagree
B17: 8. | D17: You shall not require an advance deposit from [Client Name] prior to the effective date or at any time during the contract term. | E17: Fully Agree / Partial Agree / Disagree
D18: Rx Formulary | E18: Format Type | F18: Response | G18: Explanation
B19: =B17+1 -> 9. | D19: [Client Name] will have the option of utilizing your standard formulary including all FDA approved drugs or your standard formulary with its formulary exclusions. Your proposal includes two sets of Manufacturer Payment guarantees depending on which option [Client Name] selects. | E19: Fully Agree / Partial Agree / Disagree
B20: =B19+1 -> 10. | D20: Your proposal assumes:
B21: =B20+1 -> 11. | D21: That [Client Name] has the ability to grandfather incumbent PBM formulary exclusions and/or formulary status (including Clinical Prior Authorizations and Utilization Management programs) for up to ninety (90) days following the contract effective date with NO IMPACT to the Manufacturer Payments quoted on the 'RX-Pricing MFP' tab. | E21: Fully Agree / Partial Agree / Disagree
B22: =B21+1 -> 12. | D22: [Client Name] continues to apply the same formulary strategy over the contract term. For instance, if [Client Name] currently utilizes a formulary that excludes certain FDA products, your proposal reflects your organization's exclusion-based formulary and associated Manufacturer Payment guarantees. | E22: Fully Agree / Partial Agree / Disagree
B23: =B22+1 -> 13. | D23: If you answer "Disagree" to the question above, please describe how your proposal will differ from the current formulary strategy for [Client Name]. | E23: Fully Agree / Partial Agree / Disagree
B24: 14. | D24: You, not [Client Name], will be responsible for maintaining this formulary and determining which products are preferred and non-preferred, at no additional cost to [Client Name]. | E24: Fully Agree / Partial Agree / Disagree
B25: =B24+1 -> 15. | D25: Formulary Exclusions.
B26: 16. | D26: Should [Client Name] elect to adopt a formulary with exclusions, you agree to the following:
B27: 17. | D27: Provide written notice to [Client Name] at least 180 calendar days in advance of any formulary changes that narrow the formulary, with the exception of changes due to safety and FDA driven issues. | E27: Fully Agree / Partial Agree / Disagree
B28: 18. | D28: Provide written notice to members 120 calendar days in advance of any formulary changes that narrow the formulary, with the exception of changes due to safety and FDA driven issues, for which notification must be provided to the [Client Name] and plan members within five business days. | E28: Fully Agree / Partial Agree / Disagree
B29: 19. | D29: Provide written notice to [Client Name] and members within five business days for any formulary changes that narrow the formulary due to safety and FDA driven issues. | E29: Fully Agree / Partial Agree / Disagree
B30: 20. | D30: Provide a medical necessity exception process for drugs excluded from your formulary. | E30: Fully Agree / Partial Agree / Disagree
B31: 21. | D31: If [Client Name] does not agree to such a formulary change as described directly above, [Client Name] reserves the right to implement a custom formulary or terminate for cause, with 60 calendar days written notice. | E31: Fully Agree / Partial Agree / Disagree
B32: 22. | D32: You will provide [Client Name] with a client-specific analysis identifying the financial impact (i.e. ingredient cost before and after Manufacturer Payments) and member impact of the additional exclusions on a drug-by-drug basis and in total at least 120 calendar days in advance of any changes that narrow the formulary. If earned Manufacturer Payments for products remaining on the formulary increase as a result of the additional exclusions, your analysis will identify the financial impact (i.e. ingredient cost before and after Manufacturer Payments) of these improvements on a drug-by-drug basis. There will be no arbitrary or book of business adjustment applied to [Client Name]'s guaranteed Manufacturer Payments. | E32: Fully Agree / Partial Agree / Disagree
B33: 23. | D33: How many products are excluded from your proposed exclusions-based formulary? Provide a complete list of the drugs excluded from this formulary. | E33: Number
B34: 24. | D34: How many of these exclusions are Traditional drugs? | E34: Number
B35: 25. | D35: How many of these exclusions are Specialty Drugs? | E35: Number
B36: 26. | D36: You agree that your standard formulary will include at least two drugs in every therapy class and disease state and will provide clinically appropriate access to a sufficient number of pharmaceutical products available in the marketplace. | E36: Text
D37: Retail Network | E37: Format Type | F37: Response | G37: Explanation
B38: =B36+1 -> 27. | D38: Your bid should reflect the broadest retail network available and should not contemplate or underwrite any changes to those networks that diminishes member access. | E38: Fully Agree / Partial Agree / Disagree
B39: =B38+1 -> 28. | D39: You agree to base your bid on your broadest retail network available that includes all major retail chains. | E39: Fully Agree / Partial Agree / Disagree
B40: =B39+1 -> 29. | D40: If you propose a network change that impacts more than 5% of all pharmacies in the network (add, drop certain chains, etc.) and/or one of the top 5 pharmacy chains by store count before the effective date and or during the contract term, you will provide a detailed analysis describing member disruption and impact to pricing with all underlying assumptions disclosed to [Client Name] at least 90 calendar days prior to the effective date of the proposed network change. | E40: Fully Agree / Partial Agree / Disagree
B41: 30. | D41: Furthermore, should the number of retail pharmacies in your network be reduced by more than 3% of all pharmacies in the network (add, drop certain chains, etc.) and/or one of the top 5 pharmacy chains by store count before the effective date and or any point during the contract term, you will provide [Client Name] with an improved pricing offer for the proposed reduced retail network at least 90 calendar days prior to the effective date of such change. | E41: Fully Agree / Partial Agree / Disagree
B42: 31. | D42: If the revised pricing that results from a change in the pharmacy network is not acceptable to [Client Name], they reserve the right to renegotiate pricing or terminate for cause with 30 calendar days notice for the remaining term of the contract. | E42: Fully Agree / Partial Agree / Disagree
B43: 32. | D43: If you elect to make a change in your pharmacy network, [Client Name]'s pricing cannot be negatively altered (current pricing must be honored or improved). | E43: Fully Agree / Partial Agree / Disagree
B44: 33. | D44: You have a network of pharmacies that will provide significantly greater discounts (i.e. similar or equal to mail pricing) for claims with an 83-90 day supply when mail order copays/coinsurance apply to prescriptions filled at these pharmacies. | E44: Fully Agree / Partial Agree / Disagree
B45: 34. | D45: Please input the number of pharmacies nationwide in your proposed Retail-90 and Mail at Retail Networks in the "RX-Pricing" Worksheets. | E45: Confirm
D46: Market Check | E46: Format Type | F46: Response | G46: Explanation
B47: =B45+1 -> 35. | D47: You agree to allow fair and flexible market checks to preserve competitiveness of financial terms for [Client Name]. | E47: Fully Agree / Partial Agree / Disagree
B48: =B47+1 -> 36. | D48: An annual market check will be included as part of the PBM contract. | E48: Fully Agree / Partial Agree / Disagree
B49: =B48+1 -> 37. | D49: You agree that no contractual term or financial component of the contract will be negatively impacted [Client Name] during the market check | E49: Fully Agree / Partial Agree / Disagree
B50: 38. | D50: The market check will compare the aggregate value of the discounts, dispensing fees, administration fee pricing terms of [Client Name] with the aggregate value of the discounts, dispensing fees, administration fee pricing terms available in the market place at time of the market check for plans comparable in size and plan design. The results will be shared with you in a Market Check Audit Report Part A. | E50: Fully Agree / Partial Agree / Disagree
B51: 39. | D51: In addition, the market check will compare the aggregate value of the Manufacturer Payment pricing terms of [Client Name] with the aggregate value of the Manufacturer Payment pricing terms available in the market place at the time of the market check for plans comparable in size and plan design. The results will be shared with you in a Market Check Audit Report Part B. | E51: Fully Agree / Partial Agree / Disagree
B52: 40. | D52: You will provide comments on the Market Check Report within ten (10) business days of receipt. | E52: Fully Agree / Partial Agree / Disagree
B53: 41. | D53: If Market Check Audit Report Part A and/or Part B indicates current market conditions can yield a 1% or more savings of net plan costs, the parties will reach mutual agreement on revised pricing terms and other applicable provisions. | E53: Fully Agree / Partial Agree / Disagree
B54: 42. | D54: If mutual agreement cannot be reached within 60 calendar days from the receipt date of the Market Check Audit Report, [Client Name] has the right to terminate their agreement without charge or penalty and/or may join a coalition arrangement with your firm effective the plan year immediately following, upon 30 calendar days prior written notice. | E54: Fully Agree / Partial Agree / Disagree
B55: 43. | D55: If Market Check Audit Report results in revised pricing terms, you will make those revised pricing terms effective within 30 calendar days following written approval from [Client Name] of the revised pricing terms irrespective of the status of the amendment. | E55: Fully Agree / Partial Agree / Disagree
B56: 44. | D56: You will provide an amendment within 10 business days of [Client Name]'s written acceptance of the market check. The amendment must be provided in an unprotected document which can be edited by [Client Name]. Your will turnaround subsequent revisions to the amendment no later than five business days from receipt of the requested revisions from [Client Name]. | E56: Fully Agree / Partial Agree / Disagree
D57: Term and Termination | E57: Format Type | F57: Response | G57: Explanation
B58: =B56+1 -> 45. | D58: Initial [Client Name] contract term will be for 36 months. | E58: Fully Agree / Partial Agree / Disagree
B59: =B58+1 -> 46. | D59: You agree to provide a renewal proposal at least 240 calendar days prior to the contract expiration date. | E59: Fully Agree / Partial Agree / Disagree
B60: 47. | D60: [Client Name] has the right to terminate the Agreement, with or without cause and without termination charges, with 60 calendar days written notice and [Client Name] shall be the only party to have termination without cause rights. | E60: Fully Agree / Partial Agree / Disagree
B61: 48. | D61: Should you terminate for cause, [Client Name] will require 180 calendar days written notice. | E61: Fully Agree / Partial Agree / Disagree
B62: 49. | D62: Upon termination, you agree to pay [Client Name] all Manufacturer Payments received within 36 months after the end of the agreement, unless termination results from you terming for cause. The payments will follow the contractual cycle. | E62: Fully Agree / Partial Agree / Disagree
B63: 50. | D63: You will be responsible for incurred claims up to the contract termination date, regardless of paid date. The replacement vendor will have the responsibility to pay claims incurred after the termination date of the contact. | E63: Fully Agree / Partial Agree / Disagree
B64: 51. | D64: Upon termination of [Client Name]'s contract, you will provide all necessary documentation (i.e. plan set-up), claims files, prescription history, and other data needed for the successful transition of the program to the appointed vendor within a mutually agreed upon reasonable timeframe and at no additional cost to [Client Name]. This includes, but is not limited to, all open mail order, specialty at retail (for open specialty network) and specialty pharmacy refills, prior authorization histories, accumulators used in all plan options and at least twelve months of historical claims data. It is appropriate for the PBM to remove confidential pricing information from this documentation. | E64: Fully Agree / Partial Agree / Disagree
D65: Client Audit Rights - General | E65: Format Type | F65: Response | G65: Explanation
B66: =B64+1 -> 52. | D66: [Client Name] retains the right to audit such information as reasonably required to determine that your firm is complying with the Agreement, which includes but is not limited to: 100% of pharmacy claims data, with all NCPDP fields from the most current version and release; data management; participating pharmacy contracts with PBM (transparent pricing models only); pharmaceutical manufacturer; Mail Order and Specialty Pharmacy contracts to the extent they exist with other vendor(s); approved and denied utilization management reviews; clinical program outcomes; appeals; and information related to the reporting and measurement of performance guarantees. | E66: Fully Agree / Partial Agree / Disagree
B67: =B66+1 -> 53. | D67: Each and every payment by Client to the vendor, whether representing fees, claims or otherwise, would be subject to audit and reconciliation and no such payment made by Client would constitute a waiver of its right to audit or reconcile. | E67: Fully Agree / Partial Agree / Disagree
B68: =B67+1 -> 54. | D68: Audits may be performed annually, at any time (including the months of November, December, January and February) by the auditor as determined by [Client Name]. | E68: Fully Agree / Partial Agree / Disagree
B69: 55. | D69: Confirm there would be no limit to the number of claims/discrepancies reviewed by [Client Name]’s auditor and vendor. | E69: Fully Agree / Partial Agree / Disagree
B70: 56. | D70: [Client Name] retains the right to audit at no additional charge to them, including no direct pass-through of any data retrieval fees, for up to two years of data. If additional data beyond two years is required for any audit and the data has already been stored, your standard data retrieval fees may be charged. | E70: Fully Agree / Partial Agree / Disagree
B71: 57. | D71: [Client Name] retains the right to perform additional audits of similar scope at no additional charge during the year if requested as a follow-up to ensure significant/material errors found in any prior audit have been corrected and are not recurring, or if additional information becomes available to warrant further investigation. | E71: Fully Agree / Partial Agree / Disagree
B72: 58. | D72: [Client Name] retains the right to audit more than once per year if the audits are different in scope or for different services. | E72: Fully Agree / Partial Agree / Disagree
B73: 59. | D73: [Client Name] retains the right to audit up to twenty four (24) months after the termination of this Agreement. | E73: Fully Agree / Partial Agree / Disagree
B74: 60. | D74: You agree to provide reasonable cooperation with requests for information, which includes but is not limited to the timing of the audit, deliverables, data/information requests and your response time to auditor questions during and after the process. Your firm will also provide a response to all "findings" it receives within 30 calendar days, or at a later date if mutually determined to be more reasonable based on the number and type of findings. To the extent the auditor has follow up questions to your responses, you will acknowledge receipt of the question with 48 hours and provide a formal response with answers to auditors questions within five business days | E74: Fully Agree / Partial Agree / Disagree
B75: 61. | D75: If the audit identifies confirmed errors, you will provide service warranty reports to auditor for every confirmed error. | E75: Fully Agree / Partial Agree / Disagree
B76: 62. | D76: You will review the service warranty with auditor and [Client Name] for final approval. The service warranty will not be irreversible and will not introduce new methodology to offset amounts due. | E76: Fully Agree / Partial Agree / Disagree
B77: 63. | D77: Issues identified in an external audit will not be used to offset amounts due back to [Client Name] or to members. | E77: Fully Agree / Partial Agree / Disagree
D78: [Client Name] shall not be liable for underpayments made as result of PBM error and discovered through the audit. | E78: Fully Agree / Partial Agree / Disagree
B79: =B77+1 -> 64. | D79: 100% of any agreed to adjustments, payments and/or reimbursements determined to be necessary as a result of any examination or audit shall be paid by you within 30 calendar days after both parties agree with the amounts to be reconciled, as applicable, and have executed an appropriate release document closing the audit period, which can include electronic acknowledgement. | E79: Fully Agree / Partial Agree / Disagree
B80: 65. | D80: You agree to directly fund an audit allowance of $50,000 per year for audits for [Client Name]. | E80: Fully Agree / Partial Agree / Disagree
D81: Client Audit Rights - Claim Audits | E81: Format Type | F81: Response | G81: Explanation
B82: =B80+1 -> 66. | D82: You agree to provide de-identified claims data in a file layout acceptable to [Client Name] to perform a claims audit. | E82: Fully Agree / Partial Agree / Disagree
B83: =B82+1 -> 67. | D83: [Client Name], or a mutually acceptable independent third party retained by [Client Name], may conduct a claims audit annually and such audits shall be limited to the prior two contract years of data. [Client Name] retains the right to audit beyond the prior two contract years if a claims audit indicates a systemic issue. | E83: Fully Agree / Partial Agree / Disagree
D84: Client Audit Rights - Manufacturer Payment Audits | E84: Format Type | F84: Response | G84: Explanation
B85: =B83+1 -> 68. | D85: [Client Name], through a mutually agreeable independent third party retained by [Client Name], may conduct an annual Manufacturer Payments audit for the prior two contract years. Such audit shall be limited to a review of no less than ten (10) pharmaceutical company contracts directly related to [Client Name]'s Manufacturer Payments as selected by [Client Name]. Such review of pharmaceutical company contracts may include formulary and Manufacturer Payment provisions and shall be limited to information necessary for validating the accuracy of the Manufacturer Payment amounts remitted to [Client Name] by your firm. | E85: Fully Agree / Partial Agree / Disagree
B86: =B85+1 -> 69. | D86: The right to audit Manufacturer Payments extends to any and all agreements with pharmaceutical manufacturers based on the definition of Manufacturer Payments. This includes but is not limited to Rebate agreements and other types of agreements that may require [Client Name] to enroll in certain programs in order to be eligible to receive Manufacturer Payments. | E86: Fully Agree / Partial Agree / Disagree
D87: Client Audit Rights - Implementation and Platform Migration Audits | E87: Format Type | F87: Response | G87: Explanation
B88: =B86+1 -> 70. | D88: [Client Name] reserves the right to conduct 1) a quality review of the plan designs to be loaded in the claims system(s) prior to implementation (or as soon thereafter as reasonably possible) and 2) a [Client Name]-specific readiness assessment prior to the effective date of the implementation. | E88: Fully Agree / Partial Agree / Disagree
B89: =B88+1 -> 71. | D89: You will provide all necessary support to enable [Client Name] to review [Client Name]-selected test claims in a test environment that mirrors the plan information present in the "live" claims processing system and access your readiness to implement the business without error. | E89: Fully Agree / Partial Agree / Disagree
B90: =B89+1 -> 72. | D90: You will perform all of the tasks necessary to complete the implementation audit(s) (including follow up test claims) at least 10 calendar days prior to the effective date. This assumes that [Client Name] has signed off on the benefit set-up by no later than two and a half months prior to the effective date. | E90: Fully Agree / Partial Agree / Disagree
B91: 73. | D91: If you require [Client Name] to change claim platforms, you will allow [Client Name] to conduct a pre-migration readiness assessment and claim audit in order to test that the set up and benefits will be processed correctly. The cost of the migration audit will be paid for by your organization. | E91: Fully Agree / Partial Agree / Disagree
D92: Liability/Regulatory | E92: Format Type | F92: Response | G92: Explanation
B93: =B91+1 -> 74. | D93: Your firm maintains a fidelity bond as required by ERISA. | E93: Fully Agree / Partial Agree / Disagree
B94: =B93+1 -> 75. | C94: a. | D94: Your firm maintains liability coverage with limits not less than $5,000,000 per occurrence and in the aggregate per policy year, with excess liability coverage in the amount not less than $5,000,000 per policy year. Evidence thereof will be furnished to [Client Name] upon request. | E94: Fully Agree / Partial Agree / Disagree
C95: b. | D95: If not, please explain amount of coverage. | E95: Text
B96: =B94+1 -> 76. | D96: Liability insurance covers: medical management decisions | E96: Fully Agree / Partial Agree / Disagree
B97: =B96+1 -> 77. | D97: Liability insurance covers: professional malpractice | E97: Fully Agree / Partial Agree / Disagree
B98: =B97+1 -> 78. | D98: Liability insurance covers: provider contracting | E98: Fully Agree / Partial Agree / Disagree
B99: =B98+1 -> 79. | D99: You agree to indemnify and hold [Client Name] harmless for your negligence or for your failure to perform under the Agreement. [Client Name] shall not provide any indemnity in favor of your firm. | E99: Fully Agree / Partial Agree / Disagree
B100: =B99+1 -> 80. | D100: Please describe any judgment or settlement during the past three years or pending litigation that could result in judgments or settlements in excess of $100,000. | E100: Fully Agree / Partial Agree / Disagree
D101: Member Appeals | E101: Format Type | F101: Response | G101: Explanation
B102: =B100+1 -> 81. | D102: Upon request by [Client Name], you will perform initial claims review, first level appeals, and second level appeals on behalf of [Client Name]. | E102: Fully Agree / Partial Agree / Disagree
B103: =B102+1 -> 82. | D103: You will act as plan fiduciary for all claims and appeals and you will facilitate access to external reviews. | E103: Fully Agree / Partial Agree / Disagree
D104: Compliance - General | E104: Format Type | F104: Response | G104: Explanation
B105: =B103+1 -> 83. | D105: You and your subcontracted vendors will comply with all federally mandated statutes, including ERISA, HIPAA and DOL regulations, as applicable, around member services, complaints, appeals, timeliness of responses and confidentiality. Any fines related to non-compliance will be your sole responsibility. | E105: Fully Agree / Partial Agree / Disagree
B106: =B105+1 -> 84. | D106: You maintain a dedicated individual or staff responsible for resolving HIPAA issues. | E106: Fully Agree / Partial Agree / Disagree
B107: =B106+1 -> 85. | D107: You will notify [Client Name] of any and all HIPAA violations committed by your organization. | E107: Fully Agree / Partial Agree / Disagree
B108: =B107+1 -> 86. | D108: Your processes, systems and reporting will be in full compliance with federal and state requirements, and compliant with HIPAA for acceptance of claim transactions in the applicable industry standard NCPDP format. Any fines related to non-compliance will be your sole responsibility. | E108: Fully Agree / Partial Agree / Disagree
B109: =B108+1 -> 87. | D109: You will provide support for class action settlements and notify [Client Name] of litigation against your organization. | E109: Fully Agree / Partial Agree / Disagree
B110: =B109+1 -> 88. | D110: Offshoring of data storage for [Client Name] is not permitted. | E110: Fully Agree / Partial Agree / Disagree
D111: Compliance – Privacy and Confidentiality | E111: Format Type | F111: Response | G111: Explanation
B112: =B110+1 -> 89. | D112: You agree you will not sell pharmacy data of [Client Name] without prior written approval and notice from [Client Name]. | E112: Fully Agree / Partial Agree / Disagree
B113: =B112+1 -> 90. | D113: You will adopt and implement written confidentiality policies and procedures in accordance with applicable law to ensure the confidentiality of member information used for any purpose. | E113: Fully Agree / Partial Agree / Disagree
B114: =B113+1 -> 91. | D114: You will not use or further disclose protected health information (PHI) other than as permitted or required by the Business Associate Agreement or as required by law. | E114: Fully Agree / Partial Agree / Disagree
B115: 92. | D115: You will use appropriate safeguards to prevent the unauthorized use or disclosure of the PHI. You will report to [Client Name] any unauthorized use or disclosure of the PHI. | E115: Fully Agree / Partial Agree / Disagree
B116: 93. | D116: You will mitigate, to the extent practicable, any harmful effect that is known to you of a use or disclosure of PHI by your firm in violation of the requirements of the federal privacy rule. | E116: Fully Agree / Partial Agree / Disagree
B117: 94. | D117: You will provide access to PHI in a "designated record set" in order to meet the requirements under 45 CFR §164.524. | E117: Fully Agree / Partial Agree / Disagree
B118: 95. | D118: You will make any amendment(s) to PHI in a "designated record set" pursuant to 45 CFR §164.526. | E118: Fully Agree / Partial Agree / Disagree
B119: 96. | D119: You will document such disclosures of PHI and information related to such disclosures as would be required to respond to a request by an individual for an accounting of disclosures of PHI in accordance with 45 CFR §164.528. | E119: Fully Agree / Partial Agree / Disagree
B120: 97. | D120: You will (i) implement administrative, physical, and technical safeguards that reasonably and appropriately protect the confidentiality, integrity, and availability of the electronic PHI that your firm creates, receives, maintains, or transmits, (ii) report to [Client Name] any security incident (within the meaning of 45 CFR §164.304) of which you become aware, and (iii) ensure that any employee of your firm or agent, including any subcontractor to whom you provide PHI received from, or created or received by your firm agrees to implement reasonable and appropriate safeguards to protect such PHI. | E120: Fully Agree / Partial Agree / Disagree
D121: Claims Pricing/Processing Logic | E121: Format Type | F121: Response | G121: Explanation
B122: =B120+1 -> 98. | D122: What is the name of the adjudication platform you will use for [Client Name]? | E122: Text
B123: =B122+1 -> 99. | D123: You will not charge [Client Name] a higher AWP price for any repackaged products assigned a new NDC number by a repackager, a manufacturer, or at mail order, than the original manufacturer/labeler AWP price for the same product (drug name, form, and strength). | E123: Fully Agree / Partial Agree / Disagree
B124: =B123+1 -> 100. | D124: Please indicate if your organization is a licensed repackager of prescription drugs. | E124: Fully Agree / Partial Agree / Disagree
B125: 101. | D125: The AWP used to price the claim must be from only one nationally recognized source (e.g. Medispan) | E125: Fully Agree / Partial Agree / Disagree
B126: 102. | D126: Confirm that the source above is currently Medispan | E126: Fully Agree / Partial Agree / Disagree
B127: 103. | D127: Your processes, systems and reporting will be in full compliance with federal and state requirements, and compliant with HIPAA for acceptance of claim transactions in the applicable industry standard NCPDP format. Any fines related to non-compliance will be your sole responsibility. | E127: Fully Agree / Partial Agree / Disagree
B128: 104. | D128: You agree to reimburse providers for all claims incurred on or after the effective date of the contract and in accordance with [Client Name]’s provisions for the submission of direct claims for reimbursement. | E128: Fully Agree / Partial Agree / Disagree
B129: 105. | D129: You will accept paper claims from [Client Name] or their associates for proper adjudication and invoicing. | E129: Fully Agree / Partial Agree / Disagree
D130: Specialty Drugs | E130: Format Type | F130: Response | G130: Explanation
B131: =B129+1 -> 106. | D131: You will allow [Client Name] the flexibility to determine if plan members can fill specialty drug prescriptions at retail, and will include pricing for a voluntary option (open retail network/no retail refill limit) and a closed network options (retail lockout or retail refill limit). Please include pricing on the "Specialty Drugs" Worksheet. | E131: Fully Agree / Partial Agree / Disagree
B132: =B131+1 -> 107. | D132: If [Client Name] elects to use your preferred specialty pharmacy on an exclusive basis, you will not charge for the following:
B133: =B132+1 -> 108. | D133: Utilization Management (UM) Programs (Prior Authorizations, Quantity Limits, Step Therapy, etc.) | E133: Fully Agree / Partial Agree / Disagree
B134: 109. | D134: Medication Adherence Programs | E134: Fully Agree / Partial Agree / Disagree
B135: 110. | D135: You must provide [Client Name] with 60 calendar days advance notice of modifications to the list of Specialty Drugs and corresponding pricing terms. | E135: Fully Agree / Partial Agree / Disagree
B136: 111. | D136: In making any such modifications, you will provide [Client Name] with a revised and complete list noting the effective date for each modification and the rationale for the change. | E136: Fully Agree / Partial Agree / Disagree
B137: 112. | D137: Additions to your Specialty Drug list will be based on the agreed upon criteria for defining Specialty Drugs, unless approved by [Client Name]. | E137: Fully Agree / Partial Agree / Disagree
B138: 113. | D138: Specialty Drugs will be removed from the Specialty Drug List when they no longer meet the definition of a Specialty Drug. Upon removal from the Specialty Drug List, they will be subject to the pricing for the channel in which they are dispensed. | E138: Fully Agree / Partial Agree / Disagree
D139: MAC Pricing | E139: Format Type | F139: Response | G139: Explanation
B140: =B138+1 -> 114. | D140: You will employ your most aggressive MAC list prices which must include a minimum of 95% of all generic drugs. | E140: Fully Agree / Partial Agree / Disagree
B141: =B140+1 -> 115. | D141: Products will be added to the MAC list no later than 21 days after the products becomes available. | E141: Fully Agree / Partial Agree / Disagree
B142: =B141+1 -> 116. | D142: You will apply the same MAC list at specialty, mail order and at retail. | E142: Fully Agree / Partial Agree / Disagree
B143: =B142+1 -> 117. | D143: In addition, the MAC pricing schedule at mail (including specialty) will include the same or more favorable pricing (i.e. lower per unit prices) than at retail for every drug. | E143: Fully Agree / Partial Agree / Disagree
B144: 118. | D144: Your MAC pricing schedule at mail will include a comparable list of 300-400 low cost generics included in retail generic promotion programs at competitive pricing (i.e. pricing will be equal to or less than $10 for a 90 day supply). | E144: Fully Agree / Partial Agree / Disagree
B145: 119. | D145: Effective MAC discounts cannot be lower than non-MAC AWP discounts. | E145: Fully Agree / Partial Agree / Disagree
B146: 120. | D146: Upon request, including for audits, you will provide [Client Name] a copy of the actual MAC list and pricing schedule. | E146: Fully Agree / Partial Agree / Disagree
D147: Mail Service | E147: Format Type | F147: Response | G147: Explanation
B148: =B146+1 -> 121. | D148: Provide the total number of mail order facilities wholly owned and operated by your firm nationwide: | E148: Number
B149: =B148+1 -> 122. | D149: Service Statistics for all Mail Order Facilities:
C150: a. | D150: Quarterly Dispensing Capacity | E150: Number
C151: b. | D151: Number of Prescriptions Dispensed in the Most Recent Quarter | E151: Number
C152: c. | D152: Ratio of Pharmacists to Pharmacy Technicians | E152: Text
C153: d. | D153: Average Number of Prescriptions Dispensed per Pharmacist per Hour | E153: Number
B154: =B149+1 -> 123. | D154: Average turnaround time in the most recent quarter for prescriptions that:
C155: a. | D155: Required intervention (in days) | E155: Number
C156: b. | D156: Did not require intervention (in days) | E156: Number
B157: =B154+1 -> 124. | D157: You will communicate any delays beyond 3 calendar days in the delivery of prescriptions to the member. | E157: Fully Agree / Partial Agree / Disagree
B158: =B157+1 -> 125. | D158: In the event of a natural disaster or national emergency, you will continue to fill all prescription requests, proactively obtaining any necessary overrides to facilitate this process, and provide members with expedited delivery to convenient locations. | E158: Yes/No/Explain
B159: =B158+1 -> 126. | D159: You will arrange and pay for a short-term retail supply of a delayed or incorrectly processed mail order prescription caused by your organization. In addition, you agree not to charge members for expedited delivery of the mail order prescription if the prescription delay is caused by your organization. | E159: Fully Agree / Partial Agree / Disagree
B160: =B159+1 -> 127. | D160: You will assure that 100% of mail order prescriptions will be imaged and entered when received at mail order (including Specialty prescriptions). You will assure that you will be able to electronically track 100% of all mail order prescriptions (Including Specialty) throughout the filling process, on a timely basis, from the point of prescription is received until it is shipped to the member. | E160: Yes/No/Explain
B161: 128. | D161: You assure that, within 24 hours, you will contact prescribers and/or members via a telephone call or email for 100% of incomplete mail order prescriptions (including Specialty) that require additional information. | E161: Yes/No/Explain
B162: 129. | D162: You will provide both email and telephone voicemail capabilities to communicate to members their mail order has been received and the date the order has been shipped to members. | E162: Yes/No/Explain
B163: 130. | D163: You will have the capability to accept early refill orders and suspend or “queue” these orders in your system until the earliest refill date for processing. | E163: Yes/No/Explain
B164: 131. | D164: You will have the capability to accept major credit cards and store credit card number(s) by member account for future mail order prescriptions. You will advise members 30 days in advance of the date their credit card number is going to expire. | E164: Yes/No/Explain
B165: 132. | D165: If requested, you will provide members with checks for monies owed to them instead of maintaining credits at your mail facility. | E165: Yes/No/Explain
B166: 133. | D166: Can you can support a floor limit of $300 for accepting prescription orders from members without the correct payment? | E166: Yes/No/Explain
B167: 134. | D167: You agree not to bill members for copayments greater than $500 without first contacting them to advise them of their copayment. | E167: Fully Agree / Partial Agree / Disagree
B168: 135. | D168: [Client Name] will not be required to pay outstanding balances owed by membership. | E168: Fully Agree / Partial Agree / Disagree
B169: 136. | D169: [Client Name] shall have the right to advise you in writing to change the floor limit for all members or just those with unpaid balances after 120 calendar days of dispensing. | E169: Fully Agree / Partial Agree / Disagree
B170: 137. | D170: You will not require [Client Name] to mandate use of the mail pharmacies. | E170: Fully Agree / Partial Agree / Disagree
B171: 138. | D171: If requested, you will provide a toll-free number to members currently using the incumbent's mail facility for the sole purpose of furnishing the information necessary to transition prescriptions to your firm. | E171: Fully Agree / Partial Agree / Disagree
B172: 139. | D172: If a mail package is lost, stolen or not delivered, you will not charge [Client Name] or the plan participant for the Mail Drug. | E172: Fully Agree / Partial Agree / Disagree
B173: 140. | D173: If requested, you are willing and able to prorate copays at mail order for claims that are processed for less than or equal to a 60 day supply. | E173: Fully Agree / Partial Agree / Disagree
B174: =B173+1 -> 141. | D174: You will not require [Client Name] to pay outstanding balances owed by membership. | E174: Fully Agree / Partial Agree / Disagree
D175: Specialty Pharmacy Services | E175: Format Type | F175: Response | G175: Explanation
B176: =B174+1 -> 142. | D176: If a Specialty drug package is lost, stolen or not delivered, you will not charge [Client Name] or plan participants for the Specialty Drug. | E176: Fully Agree / Partial Agree / Disagree
B177: =B176+1 -> 143. | D177: You will allow [Client Name] the flexibility to determine if participants can fill specialty drug prescriptions at retail, and will include pricing for a voluntary option (open retail network/no retail refill limit) and a closed network option (retail lockout or retail refill limit). | E177: Yes/No/Explain
B178: =B177+1 -> 144. | D178: You will not require [Client Name] to pay outstanding balances owed by membership. | E178: Fully Agree / Partial Agree / Disagree
D179: Channel Management - Internal Audits | E179: Format Type | F179: Response | G179: Explanation
B180: =B178+1 -> 145. | D180: You agree to share 100% of all audit recoveries (retail, mail, and specialty) with [Client Name] on a quarterly basis within 30 calendar days from the close of the contract quarter. | E180: Fully Agree / Partial Agree / Disagree
D181: Website/Mobile Application-Capabilities | E181: Format Type | F181: Response | G181: Explanation
B182: =B180+1 -> 146. | D182: Vendor will provide a customized page on its website specifically for [Client Name]'s Pharmacy Benefits plan(s). | E182: Yes/No/Explain
B183: =B182+1 -> 147. | D183: Vendor will delete content on such page and exclude access to certain features on its website upon Authority request | E183: Yes/No/Explain
B184: =B183+1 -> 148. | D184: Participants will have access to a web-based application, which allows them to:
C185: a. | D185: Review claim history | E185: Yes/No/Explain
C186: b. | D186: Look up claim status in real time | E186: Yes/No/Explain
C187: c. | D187: Access pharmacy directories and formulary drug placement | E187: Yes/No/Explain
C188: d. | D188: Review prescription drug cost and compare retail drug cost versus mail order drug cost | E188: Yes/No/Explain
C189: e. | D189: View benefit plan summaries and plan coverage details | E189: Yes/No/Explain
C190: f. | D190: View copies of member's Explanation of Benefits | E190: Yes/No/Explain
C191: g. | D191: Check benefit status (deductibles met, amount of benefit remaining, etc.) | E191: Yes/No/Explain
C192: h. | D192: Order replacement identification cards | E192: Yes/No/Explain
C193: i. | D193: Download printable versions of claim forms | E193: Yes/No/Explain
C194: j. | D194: Submit appeals | E194: Yes/No/Explain
C195: k. | D195: Submit inquiries to customer service via email | E195: Yes/No/Explain
C196: l. | D196: Access educational information | E196: Yes/No/Explain
B197: =B184+1 -> 149. | D197: [Client Name] will have access to a web-based application, which allows them to:
C198: a. | D198: Add, delete, and update eligible employees, retirees, and dependents in real time | E198: Yes/No/Explain
C199: b. | D199: Receive standard reports, including claims experience, utilization data, eligibility, billing history, premium rates | E199: Yes/No/Explain
C200: c. | D200: Create customized reports | E200: Yes/No/Explain
C201: d. | D201: Correspond with account management and customer service for problem resolution purposed | E201: Yes/No/Explain
C202: e. | D202: Review claim history of plan members | E202: Yes/No/Explain
C203: f. | D203: Access plan details | E203: Yes/No/Explain
C204: g. | D204: Access health topics and medical information | E204: Yes/No/Explain
... 141 more rows

Sheet Customer Service Questionnaire (hidden)
D3: =Questionnaire!D3 -> Request for PBM Proposal (RFP) for Arlington County Government
D4: Customer Service
D6: To Vendor: Use Column G to provide a brief explanation. However if the length of the explanation is greater than 50 characters including spaces, you must use the "Explanation" worksheet to provide your detail explanation. Please note, your explanations must be limited to 400 characters or less
D8: Customer Service and Account Management Questionnaire | E8: Format Type | F8: Response | G8: Explanation
A9: I. | D9: Customer Service
B10: 1. | D10: You will provide [Client Name] with a dedicated toll-free telephone line with live caller support through a designated member service team (including member service representatives and supervisors) available 24 hours a day, seven days a week, 365 days a year. | E10: Fully Agree / Partial Agree / Disagree
B11: =B10+1 -> 2. | D11: You shall also provide telephonic emergency pharmacist services twenty-four (24) hours a day, seven (7) days a week, 365 days a year. | E11: Fully Agree / Partial Agree / Disagree
B12: 3. | D12: You will support [Client Name] with US-based call center support only. No off-shoring of call center support is allowed. | E12: Fully Agree / Partial Agree / Disagree
B13: 4. | D13: [Client Name] reserve the right to review the on-line scripting for call center representatives prior to the implementation/effective date. | E13: Fully Agree / Partial Agree / Disagree
B14: 5. | D14: The member service teams will be knowledgeable of the specific pharmacy benefit programs of [Client Name] to respond to member questions. | E14: Fully Agree / Partial Agree / Disagree
B15: 6. | D15: You (or your designee at your expense) will perform a client-specific (versus book of business) member satisfaction survey at least once annually. | E15: Fully Agree / Partial Agree / Disagree
B16: 7. | D16: Member/provider service representatives will have access to a pharmacist in the event the call requires the attention of a clinician. | E16: Fully Agree / Partial Agree / Disagree
B17: 8. | D17: You will make available a geo-access and customized pharmacy provider locator service via customer service. | E17: Fully Agree / Partial Agree / Disagree
B18: 9. | D18: You will allow [Client Name] to customize the phone tree accessed by their members. | E18: Fully Agree / Partial Agree / Disagree
B19: 10. | D19: You will notify [Client Name] of any customer service disruptions lasting more than an hour. Customer service disruptions include but are not limited to unexpected technical issues, scheduled maintenance, or known unknown risks (e.g., weather-related) | E19: Fully Agree / Partial Agree / Disagree
B20: 11. | D20: Your customer service representatives will offer the name and phone number of the "manager/supervisor" for escalated issues if requested. | E20: Fully Agree / Partial Agree / Disagree
B21: 12. | D21: How many and which languages does your call center support? | E21: Text
B22: 13. | D22: Your customer service representatives have access to an application that allows them to run "test claims" (to obtain prices) for members requesting this information. | E22: Fully Agree / Partial Agree / Disagree
B23: 14. | D23: Do you currently provide versions of your member site in multiple languages that offer the same functionality as the English version? | E23: Fully Agree / Partial Agree / Disagree
B24: 15. | D24: Your online web-based member service capabilities must be able to support the following customer service functions: mail service refill/order tracking capabilities, pharmacy locator, formulary support, drug pricing tool, requests for explanation of benefits (EOB), appeal forms, and direct member reimbursement forms. | E24: Fully Agree / Partial Agree / Disagree
B25: 16. | D25: You will hold call calibration meetings, where [Client Name] listen to selected member calls and provide feedback. | E25: Fully Agree / Partial Agree / Disagree
B26: 17. | D26: You will provide a telephone tracking system for [Client Name]'s specific member/provider telephone inquiries and will provide monthly reports of call volume, first call resolution rates, average wait times and abandonment rates. | E26: Fully Agree / Partial Agree / Disagree
B27: 18. | D27: You will record 100% of all member calls. | E27: Fully Agree / Partial Agree / Disagree
B28: 19. | D28: You shall open telephone lines as early as 1 month prior to open enrollment and in following contract years will add additional staff during [Client Name]'s open enrollment to answer calls from prospective members. | E28: Fully Agree / Partial Agree / Disagree
B29: 20. | D29: You will provide all member services and provider service staff with training on [Client Name]'s program at least 10 calendar days prior to opening telephone lines and 30 calendar days before launch date, respectively. | E29: Fully Agree / Partial Agree / Disagree
B30: 21. | D30: This training will recur as needed for newly assigned staff and/or in the event of benefit modification. | E30: Fully Agree / Partial Agree / Disagree
B31: 22. | D31: You will provide training materials to [Client Name] for review and approval prior to execution of training | E31: Fully Agree / Partial Agree / Disagree
B32: 23. | D32: Confirm that you have provided a separate attachment with sample website screenshots in an electronic file. Please name the file [Your Organization Name]_Sample Website Screenshots. | E32: Confirmed
B33: 24. | D33: Confirm that you have provided a separate attachment with smartphone screenshots in an electronic file. Please name the file [Your Organization Name]_Sample Smart Phone Screenshots. | E33: Confirmed
D34: Implementation Support | E34: Format Type | F34: Response | G34: Explanation
B35: =B33+1 -> 25. | D35: You will provide a designated implementation team for [Client Name] that will include an implementation manager and the account manager or account executive. Implementation team members will provide assistance during the transition/implementation process and participate in regularly scheduled status meetings (at least weekly) with [Client Name]. | E35: Fully Agree / Partial Agree / Disagree
B36: =B35+1 -> 26. | D36: You will maintain an implementation project plan and issue log documenting all implementation issues, actions, due dates and responsible parties. Implementations must be supported year round as required by [Client Name]. | E36: Fully Agree / Partial Agree / Disagree
B37: =B36+1 -> 27. | D37: You agree to accept and load all open mail order and specialty pharmacy refills, prior authorization histories and at least six months of historical claims data at no additional cost to [Client Name] during the implementation process. | E37: Fully Agree / Partial Agree / Disagree
B38: =B37+1 -> 28. | D38: You will offer alternative approaches to minimize the need for members to request new prescriptions during transition. | E38: Fully Agree / Partial Agree / Disagree
D39: Account Management | E39: Format Type | F39: Response | G39: Explanation
B40: =B38+1 -> 29. | D40: You will provide a designated, experienced account management team to [Client Name] including a daily, operational account manager and named backup. | E40: Fully Agree / Partial Agree / Disagree
B41: =B40+1 -> 30. | D41: You will provide a designated, experienced account management team to [Client Name] including an account director/executive and named backup. | E41: Fully Agree / Partial Agree / Disagree
B42: 31. | D42: You will provide a designated, experienced account management team to [Client Name] including an eligibility specialist, as required. | E42: Fully Agree / Partial Agree / Disagree
B43: 32. | D43: You will provide a designated, experienced account management team to [Client Name] including a financial analyst dedicated to conducting quarterly business reviews of network adequacy, service levels, plan performance and strategic trend analysis. At [Client Name]'s request, this person will provide ad hoc financial reports. The financial analyst shall also focus on methods to manage costs, interpret trends in the plans and marketplace. | E43: Fully Agree / Partial Agree / Disagree
B44: 33. | D44: You will provide a designated, experienced account management team to [Client Name] including a clinical manager/licensed pharmacist to support pharmacy program policy, plan design and clinical management programs. | E44: Fully Agree / Partial Agree / Disagree
B45: 34. | D45: You will provide a designated, experienced account management team to [Client Name] including a communications specialist to customize standard member communications and developing custom member communications that reflect [Client Name]’s preferred style. | E45: Fully Agree / Partial Agree / Disagree
B46: 35. | D46: Please confirm you have completed the tab "Account Team" which details the team you are proposing for [Client Name], including a management level resource with oversight and accountability for the [Client Name] and an executive sponsor for the [Client Name]. For each account team member, include years of experience servicing similar types of organizations. | E46: Confirmed
B47: 36. | D47: Will the team be dedicated or designated to the [Client Name]? Explain how you determined the proposed staffing levels. | E47: Text
B48: 37. | D48: You will coordinate with [Client Name] for management of the SPD, SMM and SBC. This includes, but is not limited to, reviewing changes to the SPD, SMM and SBC, making sure that you administer the plan as reflected in the SPD and communicating any plan/clinical program changes to [Client Name] for inclusion in the SPD, SMM and SBC. | E48: Confirmed
B49: 38. | D49: You will measure [Client Name]'s satisfaction with the account management team (account executive, clinical account manager, account manager, financial analyst) at least annually. | E49: Fully Agree / Partial Agree / Disagree
B50: 39. | D50: You will allow [Client Name] to interview and approve any proposed replacements to the account team. | E50: Fully Agree / Partial Agree / Disagree
B51: 40. | D51: The account executive or account manager will participate on [Client Name]'s implementation team. | E51: Fully Agree / Partial Agree / Disagree
B52: 41. | D52: You shall support annual employee meetings and benefit fairs as required by [Client Name]. This may include sending PBM staff and/or materials to meetings and benefit fairs, as determined by [Client Name]. | E52: Fully Agree / Partial Agree / Disagree
B53: 42. | D53: Describe any initiatives within your firm that you believe would be of interest and value to [Client Name]. For each initiative, include: - A summary description of the initiative; - Whether any portion has been implemented (i.e. a current pilot program); - Planned timing of roll out; - Any limitations (e.g. group size, geography); - Projected fee levels and savings | E53: Text

Sheet Financial Questionnaire
D3: =Questionnaire!D3 -> Request for PBM Proposal (RFP) for Arlington County Government
D4: RFP No. 21-HRD-RFP-141 - Pharmacy Plan
D5: Financial
D7: To Vendor: Use Column G to provide a brief explanation. However if the length of the explanation is greater than 50 characters including spaces, you must use the "Explanation" worksheet to provide your detail explanation. Please note, your explanations must be limited to 400 characters or less
A9: I. | D9: Financial Questionnaire | E9: Format Type | F9: Response | G9: Explanation
D10: Definitions
B11: 1. | D11: "340B Claim(s)" means a Claim that receives 340B program pricing and is dispensed from a 340B program covered entity. | E11: Fully Agree / Partial Agree / Disagree
B12: =B11+1 -> 2. | D12: "Administrative Fee(s)" means the fee paid to PBM for agreed upon PBM services. | E12: Fully Agree / Partial Agree / Disagree
B13: =B12+1 -> 3. | D13: “Average Wholesale Price” or “AWP” means the average wholesale unit price for a product on the date the product is dispensed as set forth from the most current pricing information provided to PBM by Medi-Span Prescription Guide including supplements multiplied by the Fill Quantity. For determining the AWP, the actual 11-digit NDC package size dispensed on the date the product is dispensed will be used. | E13: Fully Agree / Partial Agree / Disagree
B14: 4. | D14: "Authorized Generics" means an approved Brand Drug that is marketed without the brand name on its label. Other than the fact that it does not have the brand name on its label, it is the exact same drug product as the branded product. An Authorized Generic may be marketed by the brand name drug company, or another company with the brand company’s permission. Authorized Generics will be identified using MediSpan Multisource Code of “M” (co-branded product) with a Brand Drug Code of “B” (Branded Generic Name) or “G” (generic). | E14: Fully Agree / Partial Agree / Disagree
B15: 5. | D15: "Biosimilar Drug" means a type of biological product that is licensed (approved) by the FDA that is highly similar to a biological product already approved by the FDA not withstanding minor differences in clinically inactive components; and that there are no clinically meaningful differences between the biologic product and the reference product in terms of the safety, purity, and potency of the product. | E15: Fully Agree / Partial Agree / Disagree
B16: 6. | D16: "Brand Drug" or "Brand Product" means an FDA approved drug, or a drug that is designated by FDA a DESI (Drug Efficacy Study Implementation) drug, or product, which is manufactured and distributed by an innovator drug company, or its licensee , set forth in Medi-Span’s National Drug Data File (MS) as a brand drug identified by all of the products meeting at least one of the following criteria: 1. Brand Name code of “T” (trademarked) and Multisource Code “M” 2. Brand Name code of “B” or “T” and Multisource Code of “N” 3. Brand Name code of “B” or “T” and Multisource Code “O” and a DAW code of 0, 1, 2, 7, 8, or 9 For avoidance of doubt, Brand Drugs may include, but are not limited to: vaccines, supplies, medical devices, kits, diabetic supplies, OTCs and test strips. | E16: Fully Agree / Partial Agree / Disagree
B17: 7. | D17: "Claim(s)" means a claim processed through PBM’s on-line claims adjudication system or otherwise transmitted or processed in accordance with the terms of this Agreement in connection with Arlington County Government’s plan, including claims in which the Member pays the full cost and Arlington County Government has no cost liability, but does not include claims that rejected due to system edits designed to enforce Arlington County Government’s pharmacy benefit programs nor reversed from the claim payment system. | E17: Fully Agree / Partial Agree / Disagree
B18: 8. | D18: "Client-Owned Pharmacy" means a Retail Pharmacy that is owned, licensed, operated or identified by Arlington County Government, where the pharmacy is operating on Arlington County Government’s campus for use by its Members. Client-Owned Pharmacy can be identified by NCPDP XXXXXX. | E18: Fully Agree / Partial Agree / Disagree
B19: 9. | D19: “Compound Drug” shall mean a mixture of two (2) or more ingredients when at least one of the ingredients in the preparation is an FDA approved federal legend drug, and the mixture of which is not otherwise generally available in an equivalent commercial form or strength in response to a physician’s prescription to create a medication tailored to the specialized medically required need for an individual patient. | E19: Fully Agree / Partial Agree / Disagree
B20: 10. | D20: "Coordination of Benefits or COB Claim(s)" means a Claim where more than one health insurance program, policy, or other form of coverage, including governmental or non-governmental coverage, has payment and a primary and secondary carrier liability is determined. | E20: Fully Agree / Partial Agree / Disagree
B21: 11. | D21: "Data Fees" means fees received by PBM for the sale of aggregate blinded data to a limited group of third parties including nationally recognized data integration firms. | E21: Fully Agree / Partial Agree / Disagree
B22: 12. | D22: "Days of Supply" means the number of days supplied for a Claim as submitted to PBM by the dispensing Pharmacy. | E22: Fully Agree / Partial Agree / Disagree
B23: 13. | D23: "Dispensing Fee(s)" means the fee paid to the dispensing pharmacy for the professional service of filling a claim and is equal to the Total Claim Cost less the Ingredient Cost and less the applicable sales tax. U&C Claims will always have a zero dollar Dispensing Fee. | E23: Fully Agree / Partial Agree / Disagree
B24: 14. | D24: "Fill Quantity" means the number of units dispensed for a Claim as submitted to PBM by the dispensing Pharmacy. | E24: Fully Agree / Partial Agree / Disagree
B25: 15. | D25: "Formulary Rebate(s)" or "Access Rebate(s)" means a rebate collected by PBM from pharmaceutical companies for products where the implemented formulary encourages Member use over other products and is attributable to Client’s specific utilization. | E25: Fully Agree / Partial Agree / Disagree
B26: 16. | D26: "Generic Drug" or "Generic Product" means an FDA approved drug, or a drug that is designated by FDA a DESI (Drug Efficacy Study Implementation) drug, or product, that is therapeutically equivalent to other pharmaceutically equivalent products, as set forth in Medi-Span’s National Drug Data File (MS) as a generic drug identified by all products meeting at least one of the following criteria: 1. Brand Name code of “G” (generic) for all Multisource Codes (M, N, O, and Y) 2. Multisource Code of “Y” (generic) 3. “O” (originator brand) with a DAW code of 3, 4, 5, or 6. For avoidance of doubt, Generic Drugs may include, but are not limited to: vaccines, supplies, medical devices, kits, diabetic supplies, OTCs and test strips. | E26: Fully Agree / Partial Agree / Disagree
B27: 17. | D27: "Home Infusion Pharmacy or HIF" means a Retail Pharmacy-based, decentralized patient care organization with expertise in USP 797-compliant sterile drug compounding that provides care to patients with acute or chronic conditions generally pertaining to parenteral administration of drugs, biologics and nutritional formulae administered through catheters and/or needles in home and alternate sites. These Pharmacies are identified by a National Council for Prescription Drug Program’s (NCPDP’s) dispenser type code of 6. | E27: Fully Agree / Partial Agree / Disagree
B28: 18. | D28: "House Generics" means a Brand Drug submitted with a Dispense As Written (DAW) 5 code in place of the generic equivalent and where the pharmacy is reimbursed at a Generic Drug rate, including MAC, as applicable. For reconciliation of the Generic Drug discount guarantees, the AWP of House Generic drugs shall be the per unit AWP of the generic equivalent and not the AWP of the Brand Drug. House Generics will be identified using MediSpan Multisource Code M, N, O, or Y and a Dispense as Written (DAW) code of 5. | E28: Fully Agree / Partial Agree / Disagree
B29: 19. | D29: "Incentive Rebate(s)" means a rebate collected by PBM from pharmaceutical companies for products where restrictions on competitor products have been put in place and is attributable to Client’s specific utilization. | E29: Fully Agree / Partial Agree / Disagree
B30: 20. | D30: "Indian Health Services, Tribal or Urban Indian Health or I/T/U" means a Retail Pharmacy operated by the Indian Health Service, an Indian tribe or tribal organization, or an urban Indian organization as defined in Section 4 of the Indian Health Care Improvement Act, 25 U.S.C. 1603. These Pharmacies are identified by a National Council for Prescription Drug Program’s (NCPDP’s) dispenser type code of 8. | E30: Fully Agree / Partial Agree / Disagree
B31: 21. | D31: “Inflation Protection Payments” means payments received by your firm (if any; and whether separately made or in the form of increased Rebates) from a pharmaceutical manufacturer for the purpose of adjusting for year over year price inflation of the manufacturer’s price to your firm for prescriptions on which Rebates are paid; in accordance with and pursuant to applicable pharmaceutical manufacturer agreements. | E31: Fully Agree / Partial Agree / Disagree
B32: 22. | D32: "Ingredient Cost" means the discounted AWP cost of a claim and is equal to the Total Claim Cost less the applicable Dispensing Fee and less the applicable sales tax. | E32: Fully Agree / Partial Agree / Disagree
B33: 23. | D33: "Limited Distribution Specialty Drugs" are those Specialty Drugs only available through select pharmacy providers as determined by the drug manufacturer. | E33: Fully Agree / Partial Agree / Disagree
B34: 24. | D34: "Long Term Care Pharmacy or LTC" means a Retail Pharmacy that dispenses medicinal preparations delivered to patients residing within an intermediate or skilled nursing facility, including intermediate care facilities for mentally disabled, hospice, assisted living facilities, group homes, and other forms of congregate living arrangements. These Pharmacies are identified by a National Council for Prescription Drug Program’s (NCPDP’s) dispenser type code of 4. | E34: Fully Agree / Partial Agree / Disagree
B35: 25. | D35: "Mail Order Pharmacy" means a Pharmacy that is owned, licensed, operated or identified by PBM, where Claims are filled and delivered through the mail to Members. | E35: Fully Agree / Partial Agree / Disagree
B36: 26. | D36: "Manufacturer Administrative Fee(s)" or "Rebate Administrative Fee(s)" means fees for services rendered to pharmaceutical manufacturers in relation to administrative duties in connection with aggregation, allocating, collecting, and invoicing for rebates. | E36: Fully Agree / Partial Agree / Disagree
B37: 27. | D37: "Manufacturer Payments" includes Rebates, Manufacturer Administrative Fees, Inflation Protection Payments, and Data Fees, but excludes Other Pharma Revenue. | E37: Fully Agree / Partial Agree / Disagree
B38: =B37+1 -> 28. | D38: "Market Share Rebate(s)" or "Performance Rebate(s)" means a rebate collected by PBM from pharmaceutical companies that is based on the utilization of a rebated product compared to the utilization of competitor products and is attributable to Client’s specific utilization. | E38: Fully Agree / Partial Agree / Disagree
B39: 29. | D39: "Maximum Allowable Cost or MAC" means the price that has been established by PBM for a Brand Drug or Generic Drug included on its MAC drug list, which may be amended from time to time by PBM. A copy of such MAC drug list shall be provided to Arlington County Government, prior to execution and upon Arlington County Government’s reasonable request, and shall be updated by PBM in its sole discretion. The same MAC list will be used for a Retail Pharmacy, a Mail Order Pharmacy, and a Specialty Pharmacy (i.e. same number of drugs, same drugs). The Mail Order Pharmacy and Specialty Pharmacy MAC list price points for individual drugs/generic class numbers shall be equal to or less (i.e., more deeply discounted) than the Retail Pharmacy MAC price points for the same drugs/generic class numbers. | E39: Fully Agree / Partial Agree / Disagree
B40: 30. | D40: "Member(s)" means each individual who Arlington County Government identifies in the eligibility file to be eligible for prescription drug benefits under its plan. | E40: Fully Agree / Partial Agree / Disagree
B41: 31. | D41: "Member Cost Share" means the amount which a Member is required to pay for a Claim in accordance with Arlington County Government’s benefit design, which may be a deductible, a percentage of the Claim price, a fixed amount and/or other charge or penalty. | E41: Fully Agree / Partial Agree / Disagree
B42: 32. | D42: "Member-Submitted Claim(s) or Paper Claim(s)" means a Claim submitted to PBM for reimbursement by a Member for which the Member paid cash. | E42: Fully Agree / Partial Agree / Disagree
B43: 33. | D43: "Military Pharmacy" means a Retail Pharmacy whose primary function is to store, prepare and dispense pharmaceuticals and other associated items to uniformed services beneficiaries. These pharmacies may be associated with Department of Defense or U.S. Coast Guard clinic, Department of Defense hospital or freestanding. Usually associated with outpatient services. Associated with taxonomy code “332000000X”. These Pharmacies are identified by a National Council for Prescription Drug Program’s (NCPDP’s) dispenser type code of 17. | E43: Fully Agree / Partial Agree / Disagree
B44: 34. | D44: "Onsite Pharmacy" means a Retail Pharmacy that is owned, licensed, operated or identified by PBM, where the Pharmacy is operating on Arlington County Government’s campus for use by its Members. Onsite Pharmacy can be identified by NCPDP XXXXXX . | E44: Fully Agree / Partial Agree / Disagree
B45: 35. | D45: ”Open Formulary” will be defined as a listing of all FDA-approved prescription drugs. No FDA-approved prescription drugs will be excluded from an open formulary without the express written consent of Arlington County Government. | E45: Fully Agree / Partial Agree / Disagree
B46: 36. | D46: "Other Pharma Revenue" means Pharmacy Purchase Discounts (i.e.. Mail Order Volume Discounts), Transmission Fees, and Specialty Service Fees. | E46: Fully Agree / Partial Agree / Disagree
B47: 37. | D47: "Over-the-Counter" or "OTC" Claim(s) means a Claim for items that do not require a prescription for a Member to purchase that Arlington County Government has chosen to or has been required to include as covered products under the prescription drug benefit. OTC Claims are defined as having an ‘O’ or 'P" indication in Medi-Span’s Rx-OTC Indicator Code. | E47: Fully Agree / Partial Agree / Disagree
B48: 38. | D48: "Pass Through Pricing” means a pricing structure comprised of fixed guaranteed discounts at PBM's Mail Order Pharmacy and Specialty Pharmacy and a full pass through of PBM's contracted rates with Participating Pharmacies and pharmaceutical manufacturers. In this arrangement, PBM retains the difference between mail service and specialty acquisition costs and the amounts guaranteed to Arlington County Government. PBM passes through (1) its contracted rates with Participating Pharmacies and (2) all Manufacturer Payments it receives from pharmaceutical manufacturers in excess of the Arlington County Government’s guaranteed Manufacturer Payments. The amount billed to Arlington County Government at Retail Pharmacies will be equal to the amount paid by PBM to the Retail Pharmacies. | E48: Fully Agree / Partial Agree / Disagree
B49: 39. | D49: "Pharmacy" means a pharmacy that participates in the PBM network pursuant to an agreement between the pharmacy and PBM. | E49: Fully Agree / Partial Agree / Disagree
B50: 40. | D50: "Pharmacy Purchase Discount(s)" or "Mail Order Volume Discount(s)" means discounts, paid at time of purchase, or retrospectively, received by PBM or its affiliates from pharmaceutical manufacturers, which are attributable to or based on products purchased by PBM affiliated dispensing pharmacies. | E50: Fully Agree / Partial Agree / Disagree
B51: 41. | D51: "Rebates" means the return of partial payments from a pharmaceutical manufacturer, pursuant to the terms of a rebate contract, negotiated by a PBM on behalf of all plan sponsors, and directly attributable to the utilization of certain prescriptions by plan sponsor's members. Rebates shall include Formulary Rebates (i.e. Access Rebates), Market Share Rebates (i.e. Performance Rebates), Incentive Rebates and Value-Based Rebates. | E51: Fully Agree / Partial Agree / Disagree
B52: 42. | D52: "Retail Pharmacy" means a Pharmacy that is not a Mail Order Pharmacy nor a Specialty Pharmacy. | E52: Fully Agree / Partial Agree / Disagree
B53: 43. | D53: "Sales Tax" means a tax imposed by local, state, or federal government at the point of sale on a Claim that is collected by the dispensing Pharmacy | E53: Fully Agree / Partial Agree / Disagree
B54: 44. | D54: "Single Source Generic(s) or SSG(s)" are Generic Drugs that are manufactured by one generic drug manufacturing company. | E54: Fully Agree / Partial Agree / Disagree
B55: 45. | D55: “Specialty Drugs” are defined as certain pharmaceuticals, biotech or biological drugs, that are used in the management of complex or genetic disease that meet at least one of the first two criteria (a and b) and all of the last three criteria (c-e) in order to be placed on your specialty drug list: a) Produced through DNA technology or biological processes b) Targets a complex disease caused by a combination of genetic, environmental and lifestyle factors c) Unique handling, distribution, and/or administration requirements such that the drug cannot be safely dispensed from a mail service pharmacy d) Requires a customized medication management program that includes medication use review, patient training, coordination of care and adherence management for successful use such that more frequent monitoring and training is required e) Are not a device, supply, medical food, or durable medical equipment. Lastly, only newly FDA-approved and launched drugs, and drugs not on the market as of January 1, 2020 may be considered for addition to the specialty pharmacy drug price list after this date, unless the Specialty Pharmacy gains access to a previously unavailable Limited Distribution Specialty Drug. | E55: Fully Agree / Partial Agree / Disagree
B56: 46. | D56: "Specialty Pharmacy" means a pharmacy that is owned, licensed, operated or identified by PBM, where Specialty Drugs are filled and delivered to Members via the mail order service. | E56: Fully Agree / Partial Agree / Disagree
B57: 47. | D57: "Specialty Service Fees" means fees collected by a PBM from pharmaceutical companies for certain costs or services associated with stocking, handling and dispensing certain Specialty Drugs, such as distribution data reporting, inventory tracking and management, FDA Risk Evaluation and Mitigation Strategy (REMS) support and enhanced adverse even reporting and coordination. | E57: Fully Agree / Partial Agree / Disagree
B58: 48. | D58: "Territory Pharmacy or TER" means a Retail Pharmacy located in one of the United States territories, i.e. American Samoa, Guam, Northern Mariana Islands, Puerto Rico, United States Virgin Islands. These Pharmacies are identified by an ISO 3166 code (state code) of AS, GU, MP, PR, and VI. | E58: Fully Agree / Partial Agree / Disagree
B59: 49. | D59: "Total Claim Cost" is equal to the Ingredient Cost plus the applicable Dispensing Fee plus the applicable sales tax. For each claim, the Total Claim Cost is determined by the Claim adjudication logic stated in the Pricing Guarantees Section below. | E59: Fully Agree / Partial Agree / Disagree
B60: 50. | D60: “Traditional Pricing” means a financial structure comprised of fixed guaranteed discounts and fees. In this arrangement, PBM retains the difference between (1) Mail Order Pharmacy and Specialty Pharmacy acquisition costs and the amounts guaranteed to Arlington County Government and (2) contracted rates with Retail Pharmacies and the amounts guaranteed to Arlington County Government. PBM passes through all Manufacturer Payments it receives in excess of Arlington County Government’s guaranteed Manufacturer Payments. Retail Pharmacy rates may vary and the amount paid by PBM to the Retail Pharmacy may not be equal to the amount billed to Arlington County Government and PBM shall retain any difference. | E60: Fully Agree / Partial Agree / Disagree
B61: 51. | D61: "Transmission Fees" means fees from participating pharmacy providers that are used to offset costs incurred to support network services. | E61: Fully Agree / Partial Agree / Disagree
B62: 52. | D62: “Usual and Customary” or “U&C” means a pharmacy’s usual selling price that a cash paying customer pays a pharmacy for prescription drugs. These shall include all applicable customer discounts including but not limited to: generic promotions, special customer, senior citizen, frequent shopper, discount club, discount card program, etc. | E62: Fully Agree / Partial Agree / Disagree
B63: 53. | D63: "Vaccine Claim(s)" means a Claim in which the dispensed product is a vaccine and the purchase price includes both the Ingredient Cost and the cost to administer the vaccine. | E63: Fully Agree / Partial Agree / Disagree
B64: 54. | D64: "Veteran Affairs Pharmacy or VA" means a Retail Pharmacy under veteran affairs jurisdiction where drugs are dispensed and pharmaceutical care is provided to enrolled veterans, by licensed pharmacists. These Pharmacies are identified by a National Council for Prescription Drug Program’s (NCPDP’s) dispenser type code of 9. | E64: Fully Agree / Partial Agree / Disagree
B65: 55. | D65: "Value-based Rebates" mean payments collected by PBM from pharmaceutical companies when pharmaceutical companies' drug therapies underperform by not meeting certain effectiveness criteria. | E65: Fully Agree / Partial Agree / Disagree
B66: 56. | D66: “Zero Balance Due” or “ZBD” claim means any claim where the member pays the total amount of the claim, including any applicable sales tax, and the plan pays zero | E66: Fully Agree / Partial Agree / Disagree
A68: II. | D68: Financial Questionnaire - Pricing Guarantees | E68: Format Type | F68: Response | G68: Explanation
D69: General
D70: In the "RX-Pricing" worksheets included in this Excel workbook, you will quote on a post-AWP rollback basis, with guaranteed minimum discounts and maximum dispensing fees at Retail 30, Retail 90, Mail at Retail, Mail Service, and Specialty and a full pass through of Manufacturer Payments. The "Mail at Retail" option listed below refers to mail pricing at certain retail pharmacies for an 83-90 day supply with the same copay/coinsurance as mail. Pricing worksheets requesting your organization's pricing are provided in this workbook. Only the responses in the designated response areas will be incorporated into the final agreement.
B71: 1. | D71: The "RX-Pricing Exclusions" Worksheet has been completed: | E71: Yes / No Explain
B72: =B71+1 -> 2. | D72: The "RX-Pricing Acquisition Cost" Worksheet has been completed: | E72: Yes / No Explain
B73: =B72+1 -> 3. | D73: The "RX-Pricing Other Costs" Worksheet has been completed: | E73: Yes / No Explain
B74: 4. | D74: The "RX-Pricing MFP" Worksheet has been completed: | E74: Yes / No Explain
B75: 5. | D75: The "RX-Pricing Specialty Drugs" Worksheet has been completed: | E75: Yes / No Explain
B76: =B75+1 -> 6. | D76: The "RX-Pricing Projections" Worksheet has been completed: | E76: Yes / No Explain
B77: =B76+1 -> 7. | D77: You will provide a current and complete list of Specialty Drugs with pricing as of January 1, 2020 . Your list will identify if each drug is a Brand/Generic, New to Market, Biosimilar, and Limited Distribution Drugs, even if your firm does not have access to them. Please provide list in the "RX-Pricing Specialty Drugs" Worksheet | E77: Fully Agree / Partial Agree / Disagree
B78: =B77+1 -> 8. | D78: In the "RX-Pricing" tabs, the percentage discounts you enter represent the guaranteed minimum annual ("Effective") AWP Discounts. | E78: Fully Agree / Partial Agree / Disagree
B79: 9. | D79: In the "RX-Pricing" tabs, the Dispensing Fees you enter at a Retail Pharmacy represent the guaranteed maximum average annual Dispensing Fees. The Dispensing Fees you enter at Mail Order Pharmacy and Specialty Pharmacy represent the guaranteed Dispensing Fee for each paid claim. | E79: Fully Agree / Partial Agree / Disagree
B80: 10. | D80: In the "RX-Pricing" tabs, the Manufacturer Payments you enter represent the guaranteed minimum Manufacturer Payments per dispensing channel. | E80: Fully Agree / Partial Agree / Disagree
B81: 11. | D81: Confirm, your organization's financial proposal is for a period of 4 years beginning July 1, 2021 and ending June 30, 2025 with (six) one year annual extensions. Arlington County Government at its own discretion will have the option to extend the terms of this RFP. All terms and conditions of the existing contract at the time of extension, including price, will be applicable. | E81: Fully Agree / Partial Agree / Disagree
D82: Pricing Changes | E82: Format Type | F82: Response | G82: Explanation
D83: In the event one or more of the following occurs, you will have the right, upon notice, to request an equitable adjustment to the rates and guarantees in the respective "RX-Pricing" worksheets, solely as necessary to return the deal to its contracted economic position as of the effective date of such event:
B84: =B81+1 -> 12. | D84: A greater than a twenty five percent (25%) change in Arlington County Government’s average plan membership (measured on a rolling twelve month basis); and/or | E84: Fully Agree / Partial Agree / Disagree
B85: =B84+1 -> 13. | D85: Arlington County Government changes its benefit designs (e.g., implements OTC plans, clinical or trend programs) in a manner for which pricing has not been negotiated in this Agreement or otherwise takes an action that has the effect of lowering the amount of Manufacturer Payments earned for Arlington County Government by more than 15%; and/or | E85: Fully Agree / Partial Agree / Disagree
B86: =B85+1 -> 14. | D86: Arlington County Government implements a full replacement CDH/HDHP. | E86: Text
C87: a. | D87: Please specify the maximum percentage of claims that constitutes your CDH/HDH plan threshold at which point your pricing guarantees stated in this bid will not change. | E87: percentage, 0
B88: =B86+1 -> 15. | D88: More than 25% of Arlington County Government’s claims are incurred in Massachusetts, Hawaii, Alaska, or Puerto Rico; and/or | E88: Fully Agree / Partial Agree / Disagree
B89: 16. | D89: Revenue from Manufacturer Payments is materially decreased because Brand Drugs unexpectedly move off-patent to generic status. Unexpectedly means the movement of a top 100 Brand Drug (measured as top 100 GPI-10 associated with single source Brand Drugs in your book of business by AWP) to off-patent more than six (6) months prior to its established patent expiration date or where Generic Drugs or over-the-counter substitutes for a top 100 Brand Drug become available more than six (6) months prior to the Brand Drug’s patent expiration date. | E89: Fully Agree / Partial Agree / Disagree
B90: 17. | D90: Should any of the above occur, you will provide the request to Arlington County Government along with the reason for the change, a Arlington County Government-specific analysis of the financial impact and any Member impact. Arlington County Government will have forty-five (45) days to review and determine if the change is reasonably acceptable. If Arlington County Government, in good faith, determines that the change is not reasonably acceptable, except as required by law, it will not occur during the term of the contract. | E90: Fully Agree / Partial Agree / Disagree
B91: 18. | D91: Except as explicitly set forth herein, pricing and financial guarantees will only change on an annual basis with the explicit written approval of Arlington County Government. | E91: Fully Agree / Partial Agree / Disagree
D92: Pricing Requirements | E92: Format Type | F92: Response | G92: Explanation
B93: =B91+1 -> 19. | D93: All applicable financial terms (including but not limited to adjudication formulas, AWP discounts, dispensing fees, administrative and clinical program fees, Manufacturer Payments, specialty discounts, and specialty dispensing fees) submitted by you will be guaranteed as specified for the full contract period and incorporated into the contract. | E93: Fully Agree / Partial Agree / Disagree
B94: =B93+1 -> 20. | D94: The financial terms you propose are Arlington County Government-specific, and not book of business averages. | E94: Fully Agree / Partial Agree / Disagree
B95: =+B94+1 -> 21. | D95: The financial guarantees you propose do NOT require Arlington County Government to make any plan design changes or implement any programs that are different from the current plan design(s). | E95: Fully Agree / Partial Agree / Disagree
B96: =+B95+1 -> 22. | D96: You will provide reporting to validate compliance with each and every financial guarantee, and such reporting must tie to your standard management reports. (This includes separate Manufacturer Payment reports where prescription counts by dispensing channel and drug type must tie out to management reports). | E96: Fully Agree / Partial Agree / Disagree
B97: =B96+1 -> 23. | D97: You will utilize the brand/generic indicator available from only one nationally recognized source (e.g., Medispan) unless a change in the indicator will lower the price for Arlington County Government or Arlington County Government agrees that the change is acceptable. In your response, please indicate which source will be used. | E97: Fully Agree / Partial Agree / Disagree
B98: 24. | D98: Your proposed pricing guarantees (i.e. discounts, dispensing fees, admin fees, Manufacturer Payments) will not be based on minimum days supply at retail, mail order, or specialty (not including Retail 90 or "Mail at Retail" programs). | E98: Fully Agree / Partial Agree / Disagree
B99: 25. | D99: Your quoted dispensing fees per claim are based on paid claims only, NOT claims that are reversed or rejected. | E99: Fully Agree / Partial Agree / Disagree
B100: 26. | D100: U&C priced claims at retail will NOT be assessed a dispensing fee. | E100: Fully Agree / Partial Agree / Disagree
B101: 27. | D101: Retail claims priced using the U&C price (or submitted price, etc.) will be NOT be included in the guaranteed maximum dispensing fee per claim. | E101: Fully Agree / Partial Agree / Disagree
B102: 28. | D102: The dispensing fee per claim listed for mail, if any, is not an average but the guaranteed maximum amount that will apply per paid claim. | E102: Fully Agree / Partial Agree / Disagree
B103: 29. | D103: Adjudication for Retail Pharmacy Claims: For each claim processed and dispensed to a member through a retail pharmacy, Arlington County Government shall pay PBM the Total Claim Cost less the member cost share plus any applicable administrative fees. The Total Claim Cost is defined to be the lowest of: i. The AWP minus the Brand Drug discount + Dispensing Fee + sales tax (Brand Drugs); ii. The AWP minus the non-MAC discount + Dispensing Fee + sales tax (Generic Drugs); iii. MAC + Dispensing Fee + sales tax; or, iv. The dispensing pharmacy’s U&C + sales tax. | E103: Fully Agree / Partial Agree / Disagree
B104: 30. | D104: Adjudication for Mail Order Pharmacy Claims: For each Claim processed and dispensed to a member through a mail order pharmacy, Arlington County Government shall pay PBM the Total Claim Cost less the member cost share plus any applicable administrative fees. The Total Claim Cost is defined to be the lowest of: i. The AWP minus the Brand Drug discount + Dispensing Fee + sales tax (Brand Drugs); ii. The AWP minus the non-MAC discount + Dispensing Fee + sales tax (Generic Drugs); or, iii. MAC + Dispensing Fee + sales tax. | E104: Fully Agree / Partial Agree / Disagree
B105: 31. | D105: Member Cost Share: At the point of sale, members will pay the lowest of: i. The Total Claim Cost as defined by dispensing channel above; or, ii. The applicable copayment/coinsurance as defined by the benefit plan. | E105: Fully Agree / Partial Agree / Disagree
B106: 32. | D106: Confirm you will adjudicate multi-ingredient Compound Drug claims using the NCPDP D.0 standard. | E106: Fully Agree / Partial Agree / Disagree
B107: 33. | D107: For any Compound Drug claims submitted for reimbursement under the pharmacy benefit plan, you will request a copy of the written recipe to verify that the claim has been submitted in accordance with contractual and NCPDP standards. | E107: Fully Agree / Partial Agree / Disagree
B108: 34. | D108: You will collect the following elements for each Compound Drug claim from every pharmacy submitting a claim for a Compound Drug: 1. Compound Indicator 2. NDC, Quantity, Submitted ingredient cost for each individual component in the recipe 3. Total Quantity and the total Usual & Customary price 4. Level of Effort value | E108: Fully Agree / Partial Agree / Disagree
B109: 35. | D109: Adjudication logic for each NDC in the Compound Drug claim recipe will be processed at the lowest of: i. The AWP minus the Brand Drug discount; ii. The AWP minus the non-MAC discount; iii. MAC (if applicable); or, iv. The dispensing pharmacy’s submitted price. The lowest adjudicated price for each ingredient in the Compound Drug claim recipe will be combined to create a Total Compound Drug Claim Cost | E109: Fully Agree / Partial Agree / Disagree
B110: 36. | D110: Arlington County Government will reimburse you for each Compound Drug claim at the lowest of: i. The Total Compound Drug Claim Cost; ii. The pharmacy submitted Total Usual & Customary price; | E110: Fully Agree / Partial Agree / Disagree
B111: 37. | D111: As a standard practice, you will review each and every Compound Drug claim greater than $200 and complete an audit of the recipe when claims appear aberrant. | E111: Fully Agree / Partial Agree / Disagree
B112: 38. | D112: You will review all pharmacies that submitted a Compound Drug claim quarterly to be measured against peer groups to control for fraud, waste and abuse. | E112: Fully Agree / Partial Agree / Disagree
B113: 39. | D113: Pricing for Specialty Drugs (excluding New to Market Limited Distribution Specialty Drugs) added to the list on or after 1/1/20 shall be equal to or greater than the respective brand or generic specialty Overall Effective Discount (OED) guarantee. | E113: Fully Agree / Partial Agree / Disagree
B114: =B113+1 -> 40. | D114: New to Market Limited Distribution Specialty Drugs may be defaulted to an initial rate for the first 60 calendar days. After 60 calendar days of acquiring access to a Limited Distribution Specialty Drug, you will renegotiate the price on the specialty drug list with Arlington County Government to a market competitive rate. | E114: Fully Agree / Partial Agree / Disagree
B115: 41. | D115: Split fills for specialty products will not be assessed two dispensing fees. | E115: Fully Agree / Partial Agree / Disagree
D116: Reconciliation of Discount and Dispensing Fee Guarantees | E116: Format Type | F116: Response | G116: Explanation
B117: =B115+1 -> 42. | D117: All pricing discounts and dispensing fees guarantees will be reconciled on an individual component basis in each delivery channel (Retail, Retail 90/Mail at Retail, Mail Order, Specialty) comparing actual discounts and dispensing fees achieved with guaranteed discounts and dispensing fees. The reconciliation will be guaranteed dollar for dollar, meaning that a surplus in one pricing component will not be allowed to make up for a shortfall in another component within or across delivery channels. | E117: Fully Agree / Partial Agree / Disagree
B118: =B117+1 -> 43. | D118: You will calculate the achieved discounts with the following formula: [1-(total discounted AWP ingredient cost --excluding dispensing fees and penalties due to DAW claims and prior to application of copayments --of applicable prescription drug claims for the measurement period divided by total undiscounted AWP ingredient cost (both amounts will be calculated as of the date of adjudication) for the measurement/guarantee period)]. Discounted ingredient cost will always be the lowest of the AWP discount, MAC or U&C adjudication methodology. | E118: Fully Agree / Partial Agree / Disagree
B119: =B118+1 -> 44. | D119: You will measure and report quarterly the discount and dispensing fee performance for each delivery channel against the guaranteed discount and dispensing fee guarantees. | E119: Fully Agree / Partial Agree / Disagree
B120: 45. | D120: You will pay/credit Arlington County Government 100% of any shortfall for the brand, generic, specialty discount guarantees within ninety (90) calendar days from the close of each annual reconciliation period (with Arlington County Government retaining 100% of any additional savings achieved above each minimum guarantee and below each maximum guarantee). | E120: Fully Agree / Partial Agree / Disagree
B121: 46. | D121: If the reconciliation of any guaranteed discounts or dispensing fees result in a shortfall owed to Arlington County Government, you will not use Zero Balance Due claims, savings associated with any drug utilization review and/or step therapy programs (including brands to generics), DAW penalty amounts if the penalty applies to the member or make any other additional adjustments to offset the shortfall amount. | E121: Fully Agree / Partial Agree / Disagree
B122: 47. | D122: Brand Discount Guarantees. You will include all Brand Drugs in the brand drug discount guarantees. Brand drugs shall include single-source and multi-source brand drugs. You will not include any Generic Drugs (including but not limited to Single-Source Generics, House Generics, new to market generics, patent litigation generics, Authorized Generics and limited supply generics) in the brand discount guarantee nor reclassify any generics to adjudicate at the brand discount. If you do not fully agree to this requirement, your brand discounts will be reduced in the financial analysis of your offer. | E122: Fully Agree / Partial Agree / Disagree
B123: 48. | D123: Generic Discount Guarantees. You will include all generics (including but not limited to generic drugs with an approved ANDA, Authorized Generics, House Generics, multi-source generics, generics subject to MAC pricing, new to market generics, Single-Source Generics, generics involved in patent litigation, and limited supply generics) in the overall generic discount and will not reclassify any Generics to adjudicate at the Brand Drug discount. You will not include any multi-source brand claims where a DAW penalty is assessed in the generic discount calculation. If you do not fully agree to this requirement, your generic discounts will be reduced in the financial analysis of your offer. | E123: Fully Agree / Partial Agree / Disagree
B124: 49. | D124: Specialty Brand Discount Guarantees. You will include all Specialty Brand Drugs dispensed through your preferred Specialty Pharmacy (including but not limited to Biosimilars, new to market Specialty Drugs, Exclusive/Limited Distribution Specialty Drugs) in the Overall Effective Discount (OED). You will not include any specialty generic drugs in the OED calculation. | E124: Fully Agree / Partial Agree / Disagree
B125: =B124+1 -> 50. | D125: In addition, your proposed specialty pricing will include varying ingredient cost discounts by Specialty Drug. The ingredient cost discount proposed for each specialty drug shall be guaranteed and you will adjudicate specialty claims filled in your preferred specialty pharmacy using the lesser of MAC or the "locked-in" drug discount. | E125: Fully Agree / Partial Agree / Disagree
B126: 51. | D126: You will include all specialty generic drugs dispensed through your preferred Specialty Pharmacy in the non-specialty Retail Pharmacy Generic Drug discount and dispensing fee guarantees. | E126: Fully Agree / Partial Agree / Disagree
B127: 52. | D127: You agree to include all Specialty Drugs dispensed at a Retail Pharmacy will be included in the reconciliation of the non-specialty retail 30 minimum Brand and Generic discount and dispensing fee guarantees in the "Rx-Pricing" Worksheet. | E127: Fully Agree / Partial Agree / Disagree
B128: 53. | D128: All Zero Balance Due claims (regardless of the delivery channel) will be reconciled at the adjudicated ingredient cost discount and will not be counted as AWP – 100%. Arlington County Government shall not be billed for any Zero Balance Due claims. | E128: Fully Agree / Partial Agree / Disagree
B129: 54. | D129: Calculation of the discount and dispensing fee guarantees shall only exclude the following types of claims: a. Compounds, bulk chemicals, powders; b. Secondary COB claims; c. Subrogation claims d. Prescriptions filled at VA Hospitals e. Claims processed at 340b pricing f. In-house pharmacy claims if in-house pharmacy is not part of retail network g. Out of Network Paper claims | E129: Fully Agree / Partial Agree / Disagree
B130: 55. | D130: You will provide a separate Generic Dispensing Rate guarantee at Retail and Mail channels, backed by a dollar for dollar guarantee for each component. You will reimburse Arlington County Government 100% of any shortfall. | E130: Fully Agree / Partial Agree / Disagree
B131: 56. | D131: Your will not pass on future increases in postage/mailing fees for your Mail Order Pharmacy and your preferred Specialty Pharmacy to Arlington County Government during the contract term. | E131: Fully Agree / Partial Agree / Disagree
B132: 57. | D132: You will adjudicate non-MAC generics with a discount that is higher than the minimum guaranteed discount for Brand Drugs in the same channel. Please specify your Non-MAC discount and dispensing fee guarantees in the "Rx-Pricing" worksheet. | E132: Fully Agree / Partial Agree / Disagree
B133: =B132+1 -> 58. | D133: Regardless as to whether an Agreement has been executed by Arlington County Government, Vendor will measure, report, reconcile and pay any discount, dispensing fee shortfall as well as minimum guaranteed manufacturer payments in accordance with the terms specified below. | E133: Fully Agree / Partial Agree / Disagree
D134: Reconciliation and Payment of Manufacturer Payment Guarantees | E134: Format Type | F134: Response | G134: Explanation
B135: =B133+1 -> 59. | D135: Your offer will include guaranteed minimum Manufacturer Payments per Brand paid prescription at Retail 30, Retail 90, "Mail at Retail"/Mail Order and Specialty. You may provide different minimum Manufacturer Payment guarantees in each year of the contract. Your guaranteed Manufacturer Payments should represent at least 98% of the expected 100% pass through of Manufacturer Payments at the time of underwriting. | E135: Fully Agree / Partial Agree / Disagree
B136: 60. | D136: You will disclose all sources of Manufacturer Payments and Other Pharma Revenue. | E136: Fully Agree / Partial Agree / Disagree
B137: =+B136+1 -> 61. | D137: Your proposed guaranteed minimum Manufacturer Payments are guaranteed minimums for the term of the agreement. | E137: Fully Agree / Partial Agree / Disagree
B138: =B137+1 -> 62. | D138: Your firm represents and warrants that it will not enter into any agreement with a pharmaceutical manufacturer for Manufacturer Payments with the impact to reduce or otherwise circumvent monies received from pharmaceutical manufacturers as being considered Manufacturer Payments. Furthermore, you will not require Arlington County Government to enroll in programs to receive Manufacturer Payments. | E138: Fully Agree / Partial Agree / Disagree
B139: 63. | D139: Your offer of Manufacturer Payments will be the greater of the minimum guaranteed amounts or 100% pass through of Manufacturer Payments. | E139: Fully Agree / Partial Agree / Disagree
B140: 64. | D140: Your offer assumes the Manufacturer Payment guarantees are NOT based on an average days' supply or pro-rated in any fashion. | E140: Fully Agree / Partial Agree / Disagree
B141: 65. | D141: Calculation of the Manufacturer Payment guarantees shall only exclude the following types of claims: a. Member submitted claims older than 180 days; b. 100% Member Cost Share Program Claims c. Subrogation claims d. Claims processed at 340b pricing | E141: Fully Agree / Partial Agree / Disagree
B142: 66. | D142: Please confirm the following:
B143: =B142+1 -> 67. | D143: You agree to pass-through 100% of Inflation Payments | E143: Fully Agree / Partial Agree / Disagree
B144: 68. | D144: You agree to pass-through 100% of Manufacturer Administrative Fees | E144: Fully Agree / Partial Agree / Disagree
B145: 69. | D145: You agree to pass-through 100% of Rebates | E145: Fully Agree / Partial Agree / Disagree
B146: 70. | D146: You agree to pass-through 100% of Data Fees | E146: Fully Agree / Partial Agree / Disagree
B147: 71. | D147: You agree to pass-through 100% of Other Pharma Revenue | E147: Fully Agree / Partial Agree / Disagree
B148: 72. | D148: You will provide an annual reconciliation of the 100% pass-through of Manufacturer Payments and pharma revenue and minimum guaranteed Manufacturer Payments. | E148: Fully Agree / Partial Agree / Disagree
B149: 73. | D149: You will report and pay guaranteed Manufacturer Payments amounts to Arlington County Government on a quarterly basis within 60 calendar days after the end of the quarter, regardless of when the Manufacturer Payments are invoiced or collected. | E149: Fully Agree / Partial Agree / Disagree
B150: 74. | D150: At year end, you will reconcile the Manufacturer Payment pass-through percent against the guaranteed Manufacturer Payments and provide documentation of your calculation and the result to Arlington County Government within 120 calendar days from the end of each contract year. | E150: Fully Agree / Partial Agree / Disagree
B151: 75. | D151: You will pay any resulting credit to Arlington County Government automatically within 150 calendar days after the end of each contract year without written request. | E151: Fully Agree / Partial Agree / Disagree
B152: 76. | D152: Any Manufacturer Payments received from manufacturers after the reconciliation will be applied to the next annual reconciliation and will be clearly noted in the next annual reconciliation. | E152: Fully Agree / Partial Agree / Disagree
D153: Allowances/Pharmacy Management Fund | E153: Format Type | F153: Response | G153: Explanation
B154: =B152+1 -> 77. | D154: You agree to pay the cost of a pre-implementation audit and readiness assessment, up to $30,000 (for 3 plan designs) or up to $45,000 (for 5+ plan designs). If this review cannot be supported remotely and requires an on-site meeting, you will be responsible for travel costs up to $3,000 per incident. | E154: Fully Agree / Partial Agree / Disagree
B155: =B154+1 -> 78. | D155: In addition to the allowances requested in the Medical portion of the RFP, you agree to provide a separate Pharmacy Management Fund allowance to cover any additional costs incurred by Arlington County Government either directly through you or external costs related to the administration of the prescription drug program. | E155: Fully Agree / Partial Agree / Disagree
B156: =B155+1 -> 79. | D156: For sake of clarity, however not limited to, please confirm the willingness of the PMF to pay for the following:
B157: 80. | D157: Market Check | E157: Fully Agree / Partial Agree / Disagree
B158: 81. | D158: Audits (Benefit, Financial, Manufacturer Payment, Clinical, FWA etc.) | E158: Fully Agree / Partial Agree / Disagree
B159: 82. | D159: Clinical Programs and Utilization Management Fees (PAs, QL, Step Therapy) | E159: Fully Agree / Partial Agree / Disagree
B160: 83. | D160: Carve-out Fees (ex. third party file feeds/data exchanges) if applicable. | E160: Fully Agree / Partial Agree / Disagree
B161: 84. | D161: Health Initiatives (ex. Wellness credits) | E161: Fully Agree / Partial Agree / Disagree
B162: 85. | D162: Costs associated with a third party Health Benefits Administration Team. | E162: Fully Agree / Partial Agree / Disagree
B163: =B162+1 -> 86. | D163: You agree that any unused portion of the Pharmacy Management Fund in one period will carry over to the subsequent plan year. | E163: Fully Agree / Partial Agree / Disagree
B164: =B163+1 -> 87. | D164: Confirm your input the appropriate allowances for the RFP Marketing, Implementation, Pre-Implementation Audit, and Pharmacy Management Fund (PMF) allowance in the "RX-Pricing" Worksheets. | E164: Fully Agree / Partial Agree / Disagree
B165: 88. | D165: Clinical Programs - Savings & Reporting | E165: Format Type | F165: Response | G165: Explanation
D166: You agree that clinical programs included in your financial proposal will have no shared savings and the fee will not be based on Arlington County Government's average membership. | E166: Fully Agree / Partial Agree / Disagree
B167: =B165+1 -> 89. | D167: All proposed clinical programs will be guaranteed dollar-for-dollar, and Arlington County Government will receive 100% of any/all savings achieved in excess of any minimum guaranteed savings within 90 calendar days from the end of each contract year. | E167: Fully Agree / Partial Agree / Disagree
B168: =B167+1 -> 90. | D168: All proposed utilization management programs will have a positive ROI for the entire time period they are in place. | E168: Fully Agree / Partial Agree / Disagree
B169: =B168+1 -> 91. | D169: You will provide the methodology for calculating ROI prior to the start of the program and will not change methodology during the life of the program without prior Arlington County Government consent. | E169: Fully Agree / Partial Agree / Disagree
B170: 92. | D170: Any savings achieved in excess from one clinical program will not be used to subsidize shortfalls in savings resulting from any other clinical program in any contract year. | E170: Fully Agree / Partial Agree / Disagree
B171: 93. | D171: You will exclude savings from Concurrent DUR and administrative edits, including but not limited to “refill too soon”, from any clinical savings guarantee. | E171: Fully Agree / Partial Agree / Disagree
B172: 94. | D172: You will provide quarterly performance reporting (activity and savings/outcomes) for Arlington County Government for all clinical programs, including fraud, waste, and abuse, within 30 calendar days from the close of each quarter. | E172: Fully Agree / Partial Agree / Disagree
B173: 95. | D173: The reporting must clearly outline the performance of each individual clinical edit separately in addition to summary level reporting. | E173: Fully Agree / Partial Agree / Disagree
B174: 96. | D174: Savings assumptions must be based on Arlington County Government-specific utilization and not on book of business measures. | E174: Fully Agree / Partial Agree / Disagree
B175: 97. | D175: Savings reported will be direct savings associated with the pharmacy benefit and will not include any inferred medical savings. | E175: Fully Agree / Partial Agree / Disagree
B176: 98. | D176: You will provide a fixed fee per letter, if any, to provide and mail communications pieces to participants to help them lower costs (e.g., switching to generics, mail, etc.). | E176: Fully Agree / Partial Agree / Disagree
B177: 99. | D177: There are no other programs for which the Plan will be charged that is not disclosed as "Other Program Fee(s)/Cost(s)" in the "RX-Pricing" Worksheets. | E177: Fully Agree / Partial Agree / Disagree

Sheet ACQ Cost Plus Questionnaire (hidden)
D3: =Questionnaire!D3 -> Request for PBM Proposal (RFP) for Arlington County Government
D4: Acquisition Cost Plus Pricing Questionnaire
D6: To Vendor: Use Column G to provide a brief explanation. However if the length of the explanation is greater than 50 characters including spaces, you must use the "Explanation" worksheet to provide your detail explanation. Please note, your explanations must be limited to 400 characters or less
A8: I. | D8: Financial Questionnaire | E8: Format Type | F8: Response | G8: Explanation
D9: Definitions
B10: 1. | D10: "Acquisition Cost Plus Pricing" means a pricing structure comprised of a full 100% pass-through of PBM's contracted rates with Retail Pharmacies, Mail Order Pharmacies, Specialty Pharmacies, Manufacturer Payments and Other Pharma Revenue. In this arrangement, PBM shall not retain any margin in the difference between Retail, Mail Order and Specialty Pharmacy acquisition costs and the amounts guaranteed to [Client Name]. PBM passes through (1) its contracted rates with Retail Pharmacies and (2) all Manufacturer Payments and Other Pharma Revenue received from pharmaceutical manufacturers in excess of the [Client Name]’s guaranteed Manufacturer Payments. | E10: Fully Agree / Partial Agree / Disagree
B11: 2. | D11: "Total Remuneration" is defined as Manufacturer Payments, Other Pharma Revenue, and includes other discounts or monies attributed to member utilization. | E11: Fully Agree / Partial Agree / Disagree
A13: II. | D13: Financial Questionnaire - Pricing Guarantees | E13: Format Type | F13: Response | G13: Explanation
D14: Pricing Requirements
D15: All of the following requirements are in ADDITION to the requirements on the Financial Questionnaire. These will be incorporated into the final PBM agreement.
B16: 1. | D16: You agree to provide Acquisition Cost Plus pricing with minimum AWP discount guarantees and maximum dispensing fee guarantees developed to approximate the value of your acquisition cost for each component (Brand Drugs, Generic Drugs, Specialty Drugs) and by dispensing channel (Retail Pharmacy, Mail Order Pharmacy, and Specialty Pharmacy). | E16: Fully Agree / Partial Agree / Disagree
B17: =B16+1 -> 2. | D17: Your proposed Specialty Drug ingredient cost discount guarantees by drug will approximate actual acquisition cost for each drug listed on Rx-Pricing, Specialty Drugs. | E17: Fully Agree / Partial Agree / Disagree
B18: =B17+1 -> 3. | D18: Your maximum guaranteed dispensing fee is reflective of the variable cost incurred to dispense medications at your Mail Pharmacy and Specialty Pharmacy. | E18: Fully Agree / Partial Agree / Disagree
B19: 4. | D19: Your Per Member Per Month (PMPM) administrative fee is reflective of the overhead cost incurred to administer PBM services on behalf of [Client Name]. | E19: Fully Agree / Partial Agree / Disagree
B20: 5. | D20: Your Per Claim administrative fee is reflective of all profit to administer PBM services on behalf of [Client Name]. | E20: Fully Agree / Partial Agree / Disagree
B21: 6. | D21: You agree to pass on the full value of any improvements made in your pricing throughout the contract term with your contracted supply chain including Retail Pharmacies, Mail Order Pharmacies, Specialty Pharmacies, distributors, wholesalers and pharmaceutical manufacturers. | E21: Fully Agree / Partial Agree / Disagree
B22: 7. | D22: [Client Name] will have the option to utilize a Retail Pass-through pricing methodology as stated below OR the Retail NADAC Methodology as stated below. | E22: Fully Agree / Partial Agree / Disagree
D23: Retail Pass-through Methodology
B24: =B22+1 -> 8. | D24: For this retail pass-through, please confirm that the amount charged to [Client Name] will be equal to the reimbursement amount paid to the Retail Pharmacy for every retail claim, without exception or exclusion. | E24: Fully Agree / Partial Agree / Disagree
B25: =B24+1 -> 9. | D25: You agree to use the most current pricing, reimbursement contract that you have agreed to with each Retail Pharmacy and/or pharmacy chain throughout the contract term. | E25: Fully Agree / Partial Agree / Disagree
D26: Retail NADAC Methodology
B27: =B25+1 -> 10. | D27: You agree to use National Average Drug Acquisition Cost (NADAC) as published by CMS as the basis of reimbursement for all retail claims processed for [Client Name]. | E27: Fully Agree / Partial Agree / Disagree
B28: =B27+1 -> 11. | D28: The retail pharmacy reimbursement for each claim will be based on the most recently published NADAC price specific to the NDC-11 of the dispensed drug, as of the date the claim is initially processed. Reimbursement will be calculated as “NADAC + Dispensing Fee”, except under the circumstances indicated below. | E28: Fully Agree / Partial Agree / Disagree
B29: =B28+1 -> 12. | D29: Confirm your adjudication logic for any claims with NDCs that do not have a published NADAC price. | E29: Fully Agree / Partial Agree / Disagree
B30: 13. | D30: Confirm your adjudication logic for any claims where the pharmacy’s Usual and Customary (U&C) price is lower than the published NADAC price. | E30: Fully Agree / Partial Agree / Disagree
B31: 14. | D31: The Dispensing Fee will be negotiated with each Retail Pharmacy, and will be fully disclosed and passed-through to [Client Name] without markup or modification. | E31: Fully Agree / Partial Agree / Disagree
B32: 15. | D32: Upon request of [Client Name], the PBM will provide to [Client Name] or its designee a listing of Retail Pharmacies and their respective Dispensing Fees. This information will be delivered to [Client Name] within 10 business days of such request. The PBM agrees that this request does not constitute an audit. | E32: Fully Agree / Partial Agree / Disagree
B33: 16. | D33: Under no circumstances will any retail claim be processed or reimbursed using a Maximum Allowable Cost (MAC) list or other similar price list controlled by the PBM. | E33: Fully Agree / Partial Agree / Disagree
B34: 17. | D34: The PBM will not charge a retail pharmacy any fees or charges for the receipt and/or processing of electronic claims or for the pharmacy’s participation in a retail network. | E34: Fully Agree / Partial Agree / Disagree
D35: Mail Order Pharmacy and Specialty Pharmacy
B36: =B34+1 -> 18. | D36: On the first and 16th of every month, you will load acquisition cost pricing by unit cost (excluding dispensing fees) for each NDC level product dispensed through your Mail Order and Specialty Pharmacy. For claims with a service date from the first of the month through the 15th of the month, the pricing loaded on the first will serve as the acquisition cost for reconciliation for every product dispensed at your Mail Order and Specialty Pharmacy. For claims with a service date from the 16th of the month through the 31st of the month (or end of month), the unit cost (excluding dispensing fees) loaded on the 16th will serve as the acquisition cost for reconciliation for every product dispensed at your Mail Order and Specialty Pharmacy. | E36: Fully Agree / Partial Agree / Disagree
B37: =B36+1 -> 19. | D37: If you are unable to accommodate the tracking of acquisition cost pricing by unit cost as written above, please describe how your firm intends to capture acquisistion cost pricing by unit for reconciliation. | E37: Text
D38: Reconciliation of Discount and Dispensing Fee Guarantees to Actual Acquisition Cost | E38: Format Type | F38: Response | G38: Explanation
B39: =B37+1 -> 20. | D39: On an annual basis, within thirty (30) calendar days following the end of each calendar year, you will calculate the acquisition cost for each claim dispensed by your Mail Order and Specialty Pharmacy by multiplying the quantity for each NDC dispensed in a given semi-monthly period by the acquisition cost price loaded for the period in which the claim was dispensed. You will then aggregate the claim-level acquisition costs by component (Brand Drug, Generic Drug, Specialty Drug) and dispensing channel (Mail Order and Specialty Pharmacy) to determine component-level acquisition cost by dispensing channel. | E39: Fully Agree / Partial Agree / Disagree
B40: =B39+1 -> 21. | D40: On an annual basis, within ninety (90) calendar days following the end of each calendar year, you agree to provide a reconciliation report between the pricing guarantees and the acquisition cost pricing by component (Brand Drugs, Generic Drugs, Specialty Drugs) and by dispensing channel (Retail Pharmacy, Mail Order Pharmacy, and Specialty Pharmacy). If the cost plus pricing is lower than the pricing guarantees, you will pay the difference within thirty (30) calendar days. If the cost plus pricing is greater than the pricing guarantees, [Client Name] will NOT reimburse you. | E40: Fully Agree / Partial Agree / Disagree
D41: Reconciliation and Payment of Other Pharma Revenue Guarantees
D42: Please confirm the following:
B43: =B40+1 -> 22. | D43: You agree to pass-through 100% of Transmission Fees | E43: Fully Agree / Partial Agree / Disagree
B44: =B43+1 -> 23. | D44: You agree to pass-through 100% of Specialty Service Fees | E44: Fully Agree / Partial Agree / Disagree
B45: =B44+1 -> 24. | D45: You agree to pass-through 100% of "Pharmacy Purchase Discount(s)" | E45: Fully Agree / Partial Agree / Disagree
B46: =B45+1 -> 25. | D46: You agree to pass-through 100% of any other Discounts/Fees associated with administering the pharmacy benefit on behalf of [Client Name]. | E46: Fully Agree / Partial Agree / Disagree
B47: =B46+1 -> 26. | D47: On the annual reconciliation of the 100% pass-through of Manufacturer Payments and Other Pharma Revenue with the minimum guaranteed Manufacturer Payments you will clearly note the value of Transmission Fees, Specialty Service Fees and Pharmacy Purchase Discounts separately and distinct from Manufacturer Payments. | E47: Fully Agree / Partial Agree / Disagree
B48: =B47+1 -> 27. | D48: Any Other Pharma Revenue received from manufacturers, wholesalers after the reconciliation will be applied to and clearly identified on the next claims invoice immediately following reconciliation. | E48: Fully Agree / Partial Agree / Disagree
A50: III. | D50: Expanded Audit Rights for Acquisition Cost Plus Pricing
B51: 1. | D51: [Client Name] retains the right to audit such information as reasonably required to determine that your firm is complying with the Acquisition Cost Plus pricing model, which includes but is not limited to: 100% of pharmacy claims data, with all NCPDP fields from the most current version and release; data management; Retail Pharmacy contracts with PBM; pharmaceutical manufacturer and wholesaler agreements; Mail Order and Specialty Pharmacy acquisition contracts; Specialty Service Fee agreements; approved and denied utilization management reviews; clinical program outcomes; appeals; and information related to verifying compliance with the Acquisition Cost Plus pricing model. | E51: Fully Agree / Partial Agree / Disagree
B52: =B51+1 -> 2. | D52: Upon request of [Client Name], the PBM shall provide to [Client Name] or its designee a copy of any and all Electronic Remittance Advice (ERA) 835 files, also referred to as HIPAA X12N 835 files, which contain any processed and/or reversed claims relevant to [Client Name]’s plan. Such files must be provided in their original form, without redaction or modification, except that such files may be redacted to exclude Personally Identifiable Information (PII) for any payers other than [Client Name]. The files will be delivered to [Client Name] within 10 business days of such request. The PBM agrees that this request does not constitute an audit. | E52: Fully Agree / Partial Agree / Disagree
A54: IV. | D54: Clinical Program Bundled Fee
B55: 1. | D55: You agree to provide all services listed on the "RX-Pricing Other Costs" in column B, for a bundled clinical program fee and any additional clinical programs developed throughout the life of agreement shall be included. You will not charge [Client Name] any fees for clinical programs or services other than the single clinical program fee. | E55: Fully Agree / Partial Agree / Disagree
B56: =B55+1 -> 2. | D56: Confirm you input the Clinical Program Bundled Fee in Cell D12, on the "Rx-Pricing, Other Costs" tabs | E56: Yes/No/Explain

Sheet DropDown (hidden)
A1: Included Retail Only | B1: Yes | C1: Fully Agree | D1: Yes | E1: Complete | F1: Wholly Owned | G1: Confirmed | H1: At least quarterly | I1: Monthly
A2: Included Mail Only | B2: No | C2: Partial Agree | D2: No, Explain | E2: Not Complete | F2: Outsourced | G2: Not Confirmed | H2: At least semi-annually | I2: Quarterly
A3: Included Channel Agnostic | C3: Disagree | H3: At least annually | I3: Semi-Annually
A4: Excluded Channel Agnostic | H4: Other, specify | I4: Annually
I5: Other, Explain

Sheet Retiree Questionnaire (hidden)
D3: =Questionnaire!D3 -> Request for PBM Proposal (RFP) for Arlington County Government
D4: Retiree Questionnaire
D6: To Vendor: Use Column G to provide a brief explanation. However if the length of the explanation is greater than 50 characters including spaces, you must use the "Explanation" worksheet to provide your detail explanation. Please note, your explanations must be limited to 400 characters or less
A8: I. | D8: Medicare Part D: RDS | E8: Format Type | F8: Response | G8: Explanation
D9: You are able to provide the following assistance and reporting to the client related to its Medicare Part D Retire Drug Subsidy:
B10: 1. | D10: You will provide all standard reporting to the [Client Name] at no charge. | E10: Fully Agree / Partial Agree / Disagree
B11: =B10+1 -> 2. | D11: If requested, you will provide all standard reporting to CMS on behalf of the [Client Name] at no charge. | E11: Fully Agree / Partial Agree / Disagree
B12: =B11+1 -> 3. | D12: Upon request of the [Client Name], you will provide notice of creditable coverage to members at no charge. | E12: Fully Agree / Partial Agree / Disagree
B13: 4. | D13: You will assist the [Client Name] in the course of any CMS audit. | E13: Fully Agree / Partial Agree / Disagree
B14: 5. | D14: You will provide the [Client Name] with reports separating out the Part D population for reporting purposes. | E14: Fully Agree / Partial Agree / Disagree
B15: 6. | D15: You will comply with CMS guidance and include language in your contract in compliance with CMS guidance. | E15: Fully Agree / Partial Agree / Disagree
B16: 7. | D16: In a separate attachment, please suggest performance guarantees in regards to the above Medicare Part D questions. Please name the attachment [Your Organization Name]_Medicare Part D Performance Guarantees. Confirm this is attached to your response. | E16: Fully Agree / Partial Agree / Disagree
B17: 8. | D17: Confirm your capability to administer RDS Services. | E17: Fully Agree / Partial Agree / Disagree
B18: 9. | D18: Confirm that you provided your proposed RDS fee (if applicable) on a per member, per month (PMPM) basis in the "RX-Pricing" worksheet. | E18: Fully Agree / Partial Agree / Disagree
B19: =B18+1 -> 10. | D19: You will provide required RDS reconciliation support to the [Client Name] for up to two years after termination at no additional cost. | E19: Fully Agree / Partial Agree / Disagree
A21: II. | D21: EGWP Requirements | E21: Format Type | F21: Response | G21: Explanation
B22: 1. | D22: You are required to support an enhanced Prescription Drug Plan (PDP) (Employee Group Waiver Program (EGWP) 800 Series) (EGWP+Wrap), both as fully self-funded. An enhanced PDP is defined as a contract with a PDP sponsor for coverage equal to or greater than the standard Medicare benefit. Please confirm your capability to offer an EGWP + Wrap Product. | E22: Confirmed
B23: 2. | D23: For purposes of determining the federal subsidy, the proposed regulations provide that no administrative costs may be included in dispensing fees and that administrative costs may not be offset by any manufacturer or pharmacy discounts, chargebacks, rebates or similar price concessions. Any charges for Medicare Part D services must be included in your financial proposal. | E23: Fully Agree / Partial Agree / Disagree
B24: 3. | D24: Will your organization notify the [Client Name] of any Part D participant who qualifies for the Low-Income Subsidy (LIS) and automatically provide the [Client Name] with LIS proceeds (once the participant's premium is reduced to zero)? | E24: Yes/No/Explain
B25: 4. | D25: Your organization agrees it will meet all requirements regarding coordination with CMS for billing, reconciliation, and reporting for Employer Group Waiver Plans (EGWP). This includes reconciliation of capitation payments, administration of Low-Income Subsidies, reporting requirements related to rebates, TrOOP, and “Prescription Drug Event” requirements. | E25: Fully Agree / Partial Agree / Disagree
B26: 5. | D26: Your organization agrees it will maintain and administer CMS requirements for benefit design, networks, formulary, rebate management, clinical program management, and Medication Therapy Management for EGWP plans. | E26: Fully Agree / Partial Agree / Disagree
B27: 6. | D27: Your organization agrees it will maintain and administer CMS requirements for member customer service, member enrollment, and member materials for EGWP plans. | E27: Fully Agree / Partial Agree / Disagree
D28: Enrollment and Disenrollment Requirements
B29: 7. | D29: Is your organization able or willing to accept enrollment/disenrollment from the [Client Name] without obtaining an election form from each participant? | E29: Yes/No/Explain
B30: 8. | D30: What assistance with this process will your organization require from the [Client Name] with the enrollment process? | E30: Text
B31: 9. | D31: If your organization will not accept enrollment/disenrollment from the [Client Name], what type of enrollment administration does your organization use (e.g., Internet, Telephone, or Paper)? | E31: Text
B32: 10. | D32: If enrollment/disenrollment does not occur through the [Client Name], how will your PDP plan communicate with the [Client Name] and the [Client Name]'s participants regarding enrollment? (Answer N/A if you are willing to accept enrollment/disenrollment information from the [Client Name].) | E32: Text
B33: 11. | D33: Will you plan disenroll a participant who enrolls in another Medicare Part D PDP or an MA-PD plan? | E33: Yes/No/Explain
B34: 12. | D34: If yes, how will you notify the participant? Will you notify the participant and give them an opportunity to disenroll from the PDP or MA-PD? | E34: Text
B35: 13. | D35: Does your plan utilize the Part D Special Enrollment Period (SEP)? | E35: Yes/No/Explain
B36: 14. | D36: Will you be able to administer split family/dependent coverages if also covering Pre-65 Retirees? | E36: Yes/No/Explain
B37: 15. | D37: If yes, what are the administrative implications of split dependents with the PDP product(s) you are offering the [Client Name]? | E37: Text
B38: 16. | D38: How will you manage eligibility rejections from CMS that are not related to enrollment in another Medicare Part D PDP or an MA-PD plan? | E38: Text
B39: 17. | D39: Will you allow a participant to change PDP plans after initial enrollment? | E39: Yes/No/Explain
B40: 18. | D40: If yes, what are the conditions under which a change is permitted? How will this impact billing to the individual and balance billing to the [Client Name]? | E40: Text
D41: Waivers
B42: 19. | D42: Has your organization applied for all of the standard employer Part D waivers? If not, what waiver(s) did you not apply for and why? | E42: Text
B43: 20. | D43: Ability to restrict enrollment to retirees only? | E43: Text
B44: 21. | D44: Marketing/beneficiary communication requirements? | E44: Text
B45: 22. | D45: Service area requirements? What service area applies to your PDP? Any specific restrictions? | E45: Text
B46: 23. | D46: Did your organization request any individual employer waivers? If yes, what were they? | E46: Text
B47: 24. | D47: Did you request a waiver of appeals and coverage determinations? In other words, did you request a waiver to allow employers to use ERISA's claims and appeals procedures? | E47: Text
D48: Communication Materials
B49: 25. | D49: What communication materials, if any, will you provide to the [Client Name]'s participants? | E49: Text
B50: 26. | D50: Will you provide customized and targeted mailings? | E50: Yes/No/Explain
B51: 27. | D51: If yes, what is the additional cost? | E51: Text
B52: 28. | D52: Are you flexible in how these materials are branded? | E52: Yes/No/Explain
A54: III. | D54: Medicare Part B COB | E54: Format Type | F54: Response | G54: Explanation
B55: 1. | D55: Do you currently offer a real-time Medicare Part B COB solution at mail order? | E55: Yes/No/Explain
B56: 2. | D56: As separate attachment, you agree to provide a process flow for the program and explain which entity provides these services. This should be submitted as an attachment with your cost proposal response. | E56: Yes/No/Explain
B57: 3. | D57: Are all of your mail order pharmacies, including specialty pharmacies, enrolled as Medicare Part B Suppliers? If no, are some of your mail order pharmacies, including specialty pharmacies, enrolled as Medicare Part B Suppliers? If yes, how many? | E57: Yes/No/Explain
B58: 4. | D58: If some or all of your pharmacies are Medicare Part B Suppliers, which classes of drugs and supplies are currently dispensed to Medicare Part B members? | E58: Text
B59: 5. | D59: Do you have edits in place at retail to identify Medicare Part B eligible members and reject their claims with messaging to pharmacies that the claims should be submitted to Medicare Part B? | E59: Yes/No/Explain
B60: 6. | D60: Is there an additional fee for this? If so, provide the additional fee in the "RX-Pricing Other Costs" Worksheet. | E60: Yes/No/Explain
A62: IV. | D62: Clinical Program Bundled Fee
B63: 1. | D63: You agree to provide all services listed on the "RX-Pricing Other Costs" in column B, for a bundled clinical program fee and any additional clinical programs developed throughout the life of agreement shall be included. You will not charge [Client Name] any fees for clinical programs or services other than the single clinical program fee. | E63: Fully Agree / Partial Agree / Disagree
B64: =B63+1 -> 2. | D64: Confirm you input the Clinical Program Bundled Fee in Cell D12, on the "RX-Pricing Other Costs" tabs | E64: Yes/No/Explain

Sheet RX-Pricing Exclusions
D3: =Questionnaire!D3 -> Request for PBM Proposal (RFP) for Arlington County Government
D4: RFP No. 21-HRD-RFP-141 - Pharmacy Plan
D5: RX-Pricing, Exclusions
D7: To Vendor: Use Columns F-I to provide a response as to whether the claim type listed in Column D is "INCLUDED" in the respective discount, dispensing fee, Manufacturer Payment guarantee. However if the length of the explanation is greater than 50 characters including spaces, you must use the "Explanation" worksheet to provide your detail explanation. Please note, your explanations must be limited to 400 characters or less
D9: Claim Inclusion/Exclusion of Specific Claim Types (THIS EXHIBIT WILL BE INCLUDED IN THE FINAL CONTRACT) | F9: Non-Specialty Discount and Dispensing Fee Guarantees | G9: Specialty Discount and Dispensing Fee Guarantees (Including your Overall Effective Discount) | H9: Non-Specialty Manufacturer Payment Guarantees | I9: Specialty Manufacturer Payment Guarantees
A10: I. | E10: Format Type | F10: Response | G10: Response | H10: Response | I10: Response | J10: Explanation
B11: 1. | D11: 100% Member Cost Share Program Claims | E11: Included / Excluded, Explain
B12: 2. | D12: 340B Claims | E12: Included / Excluded, Explain
B13: 3. | D13: Anti-Nausea Drugs | E13: Included / Excluded, Explain
B14: 4. | D14: Biosimilar Drugs | E14: Included / Excluded, Explain
B15: 5. | D15: Bulk Chemicals | E15: Included / Excluded, Explain
B16: 6. | D16: Claims approved by formulary exception | E16: Included / Excluded, Explain
B17: 7. | D17: Claims from Entities Eligible for Federal Supply Schedule Prices | E17: Included / Excluded, Explain
B18: 8. | D18: Claims older than 180 days | E18: Included / Excluded, Explain
B19: 9. | D19: Compound Drug Claims | E19: Included / Excluded, Explain
B20: 10. | D20: Coordination of Benefit (COB) / Secondary Payer | E20: Included / Excluded, Explain
B21: =B20+1 -> 11. | D21: Copay Offset Program dollars | E21: Included / Excluded, Explain
B22: =B21+1 -> 12. | D22: Discount Card Claims | E22: Included / Excluded, Explain
B23: 13. | D23: Dispense as Written (DAW) Claims | E23: Included / Excluded, Explain
B24: 14. | D24: Diabetic Supplies (Meters, Strips, Syringes etc.) | E24: Included / Excluded, Explain
B25: 15. | D25: Exclusive/Limited Distribution Specialty Drugs for which you do not have access | E25: Included / Excluded, Explain
B26: 16. | D26: Exclusive/Limited Distribution Specialty Drugs that your specialty pharmacy has access | E26: Included / Excluded, Explain
B27: 17. | D27: Exclusive/Limited Distribution Specialty Drugs that only your specialty pharmacy has access | E27: Included / Excluded, Explain
B28: 18. | D28: Exclusive/Limited Distribution Specialty Drugs that are New to Market (NTM) | E28: Included / Excluded, Explain
B29: 19. | D29: Generic Specialty Drugs | E29: Included / Excluded, Explain
B30: 20. | D30: Hepatitis B Drugs | E30: Included / Excluded, Explain
B31: 21. | D31: Hepatitis C Drugs | E31: Included / Excluded, Explain
B32: 22. | D32: HIV Drugs | E32: Included / Excluded, Explain
B33: 23. | D33: Home Infusion Pharmacy or HIF | E33: Included / Excluded, Explain
B34: 24. | D34: Indian Health Services, Tribal or Urban Indian Health or I/T/U | E34: Included / Excluded, Explain
B35: 25. | D35: Long Term Care Pharmacy or LTC | E35: Included / Excluded, Explain
B36: 26. | D36: Low List Price Brand Drugs | E36: Included / Excluded, Explain
B37: 27. | D37: Medicaid Managed Claims | E37: Included / Excluded, Explain
B38: 28. | D38: Military Pharmacy | E38: Included / Excluded, Explain
B39: 29. | D39: Missing / Invalid MediSpan data | E39: Included / Excluded, Explain
B40: 30. | D40: Most Favored Nation States | E40: Included / Excluded, Explain
B41: 31. | D41: Multi-Source Brand (MSB) Claims | E41: Included / Excluded, Explain
B42: 32. | D42: New to Market (NTM) Specialty Drugs | E42: Included / Excluded, Explain
B43: 33. | D43: No Bill, No Remit | E43: Included / Excluded, Explain
B44: 34. | D44: Non-Preferred Brand Drug Claims | E44: Included / Excluded, Explain
B45: 35. | D45: Onsite Pharmacy Utilization | E45: Included / Excluded, Explain
B46: 36. | D46: Out of Network Claims | E46: Included / Excluded, Explain
B47: 37. | D47: Over-the-Counter (Claims) | E47: Included / Excluded, Explain
B48: 38. | D48: Paper or Member Submitted Claims | E48: Included / Excluded, Explain
B49: 39. | D49: Patient/Copay Assistance dollars | E49: Included / Excluded, Explain
B50: 40. | D50: PCSK-9 Inhibitor Claims | E50: Included / Excluded, Explain
B51: 41. | D51: Pharmacies subject to Region-specific Pricing | E51: Included / Excluded, Explain
B52: 42. | D52: Pharmacies that Do Not Meet your Discount or Credential standards | E52: Included / Excluded, Explain
B53: 43. | D53: Repackaged National Drug Code (NDC) Claims | E53: Included / Excluded, Explain
B54: 44. | D54: Rural Pharmacies | E54: Included / Excluded, Explain
B55: 45. | D55: Subrogation Claims | E55: Included / Excluded, Explain
B56: 46. | D56: Transplant Drugs | E56: Included / Excluded, Explain
B57: 47. | D57: Usual and Customary (U&C) | E57: Included / Excluded, Explain
B58: 48. | D58: Vaccine and Vaccine Administration Claims | E58: Included / Excluded, Explain
B59: 49. | D59: Veteran Affairs Pharmacy or VA | E59: Included / Excluded, Explain

Sheet RX-Pricing Traditional
B3: =Questionnaire!D3 -> Request for PBM Proposal (RFP) for Arlington County Government
B4: RFP No. 21-HRD-RFP-141 - Pharmacy Plan
B5: RX-Pricing, Traditional, Broadest Network, Commercial Plans
B7: Instructions: Please complete every cell on this worksheet. For retail, please propose pricing for your broadest retail network. Your financial offer MUST COMPLY with all Bidding Requirements and requirements in the Financial Questionnaire. Your pricing offer must be on a post-AWP rollback basis. All proposed terms are guaranteed including adjudication formulas.
B9: Aon Identification Data
B10: Vendor Name
B12: RETAIL 30 (INCLUDING SPECIALTY FROM NON-PREFERRED SPECIALTY VENDORS)
B13: Type of Network: | C13: Broadest Network
C14: Base Contract Term | G14: Optional Contract Term ((2) one year extensions))
B15: Number of Pharmacies Nationwide
B16: Please confirm Specialty Drugs filled at Retail Pharmacy are included in the guarantees below. If not, please indicate how they are priced and provide.
B17: Please confirm Specialty Generic Drugs filled at your preferred Specialty Pharmacy are included in the Generic Drug discount guarantees below. If not, please indicate how they are priced and provide.
C18: Year 1 | D18: Year 2 | E18: Year 3 | F18: Year 4 | G18: Year 5 | H18: Year 6
B19: Minimum AWP Discount Guarantees
B20: Brand Drug Discount Guarantee | C20: Insert AWP discount | D20: Insert AWP discount | E20: Insert AWP discount | F20: Insert AWP discount | G20: Insert AWP discount | H20: Insert AWP discount
B21: Generic Effective Rate (MAC+Non-MAC) Discount Guarantee | C21: Insert AWP discount | D21: Insert AWP discount | E21: Insert AWP discount | F21: Insert AWP discount | G21: Insert AWP discount | H21: Insert AWP discount
B22: Generic Drug Non-Mac Discount Guarantee | C22: Insert AWP discount | D22: Insert AWP discount | E22: Insert AWP discount | F22: Insert AWP discount | G22: Insert AWP discount | H22: Insert AWP discount
B23: Average Dispensing Fee per Paid Claim
B24: All Brands | C24: Insert Guaranteed Amt | D24: Insert Guaranteed Amt | E24: Insert Guaranteed Amt | F24: Insert Guaranteed Amt | G24: Insert Guaranteed Amt | H24: Insert Guaranteed Amt
B25: All Generics | C25: Insert Guaranteed Amt | D25: Insert Guaranteed Amt | E25: Insert Guaranteed Amt | F25: Insert Guaranteed Amt | G25: Insert Guaranteed Amt | H25: Insert Guaranteed Amt
B26: Administration Fees
B27: Per Paid Claim | C27: Insert Guaranteed Amt | D27: Insert Guaranteed Amt | E27: Insert Guaranteed Amt | F27: Insert Guaranteed Amt | G27: Insert Guaranteed Amt | H27: Insert Guaranteed Amt
B28: Per Member Per Month | C28: Insert Guaranteed Amt | D28: Insert Guaranteed Amt | E28: Insert Guaranteed Amt | F28: Insert Guaranteed Amt | G28: Insert Guaranteed Amt | H28: Insert Guaranteed Amt
B30: RETAIL 90 (INCLUDING SPECIALTY FROM NON-PREFERRED SPECIALTY VENDORS)
B31: Type of Network: | C31: Retail 90 Network
C32: Base Contract Term | G32: Optional Contract Term
B33: Number of Pharmacies Nationwide
C34: Year 1 | D34: Year 2 | E34: Year 3 | F34: Year 4 | G34: Year 5 | H34: Year 6
B35: Minimum AWP Discount Guarantees
B36: Brand Drug Discount Guarantee | C36: Insert AWP discount | D36: Insert AWP discount | E36: Insert AWP discount | F36: Insert AWP discount | G36: Insert AWP discount | H36: Insert AWP discount
B37: Generic Effective Rate (MAC+Non-MAC) Discount Guarantee | C37: Insert AWP discount | D37: Insert AWP discount | E37: Insert AWP discount | F37: Insert AWP discount | G37: Insert AWP discount | H37: Insert AWP discount
B38: Generic Drug Non-Mac Discount Guarantee | C38: Insert AWP discount | D38: Insert AWP discount | E38: Insert AWP discount | F38: Insert AWP discount | G38: Insert AWP discount | H38: Insert AWP discount
B39: Maximum Dispensing Fee per Paid Claim
B40: All Brands | C40: Insert Guaranteed Amt | D40: Insert Guaranteed Amt | E40: Insert Guaranteed Amt | F40: Insert Guaranteed Amt | G40: Insert Guaranteed Amt | H40: Insert Guaranteed Amt
B41: All Generics | C41: Insert Guaranteed Amt | D41: Insert Guaranteed Amt | E41: Insert Guaranteed Amt | F41: Insert Guaranteed Amt | G41: Insert Guaranteed Amt | H41: Insert Guaranteed Amt
B42: Administration Fees
B43: Per Paid Claim | C43: Insert Guaranteed Amt | D43: Insert Guaranteed Amt | E43: Insert Guaranteed Amt | F43: Insert Guaranteed Amt | G43: Insert Guaranteed Amt | H43: Insert Guaranteed Amt
B44: Per Member Per Month | C44: Insert Guaranteed Amt | D44: Insert Guaranteed Amt | E44: Insert Guaranteed Amt | F44: Insert Guaranteed Amt | G44: Insert Guaranteed Amt | H44: Insert Guaranteed Amt
B46: MAIL AT RETAIL (EXCLUDING SPECIALTY)
C47: Mail at Retail Network
C48: Base Contract Term | G48: Optional Contract Term
B49: Anchor Chains in Mail at Retail Network
B50: Number of Pharmacies Nationwide
C51: Year 1 | D51: Year 2 | E51: Year 3 | F51: Year 4 | G51: Year 5 | H51: Year 6
B52: Minimum AWP Discount Guarantees
B53: Brand Drug Discount Guarantee | C53: Insert AWP discount | D53: Insert AWP discount | E53: Insert AWP discount | F53: Insert AWP discount | G53: Insert AWP discount | H53: Insert AWP discount
B54: Generic Effective Rate (MAC+Non-MAC) Discount Guarantee | C54: Insert AWP discount | D54: Insert AWP discount | E54: Insert AWP discount | F54: Insert AWP discount | G54: Insert AWP discount | H54: Insert AWP discount
B55: Generic Drug Non-Mac Discount Guarantee | C55: Insert AWP discount | D55: Insert AWP discount | E55: Insert AWP discount | F55: Insert AWP discount | G55: Insert AWP discount | H55: Insert AWP discount
B56: Maximum Dispensing Fee per Paid Claim
B57: All Brands | C57: Insert Guaranteed Amt | D57: Insert Guaranteed Amt | E57: Insert Guaranteed Amt | F57: Insert Guaranteed Amt | G57: Insert Guaranteed Amt | H57: Insert Guaranteed Amt
B58: All Generics | C58: Insert Guaranteed Amt | D58: Insert Guaranteed Amt | E58: Insert Guaranteed Amt | F58: Insert Guaranteed Amt | G58: Insert Guaranteed Amt | H58: Insert Guaranteed Amt
B59: Administration Fees
B60: Per Paid Claim | C60: Insert Guaranteed Amt | D60: Insert Guaranteed Amt | E60: Insert Guaranteed Amt | F60: Insert Guaranteed Amt | G60: Insert Guaranteed Amt | H60: Insert Guaranteed Amt
B61: Per Member Per Month | C61: Insert Guaranteed Amt | D61: Insert Guaranteed Amt | E61: Insert Guaranteed Amt | F61: Insert Guaranteed Amt | G61: Insert Guaranteed Amt | H61: Insert Guaranteed Amt
B63: MAIL ORDER (EXCLUDING SPECIALTY)
C64: Base Contract Term | G64: Optional Contract Term
C65: Year 1 | D65: Year 2 | E65: Year 3 | F65: Year 4 | G65: Year 5 | H65: Year 6
B66: Minimum AWP Discount Guarantees
B67: Brand Drug Discount Guarantee | C67: Insert AWP discount | D67: Insert AWP discount | E67: Insert AWP discount | F67: Insert AWP discount | G67: Insert AWP discount | H67: Insert AWP discount
B68: Generic Effective Rate (MAC+Non-MAC) Discount Guarantee | C68: Insert AWP discount | D68: Insert AWP discount | E68: Insert AWP discount | F68: Insert AWP discount | G68: Insert AWP discount | H68: Insert AWP discount
B69: Generic Drug Non-Mac Discount Guarantee | C69: Insert AWP discount | D69: Insert AWP discount | E69: Insert AWP discount | F69: Insert AWP discount | G69: Insert AWP discount | H69: Insert AWP discount
B70: Maximum Dispensing Fee per Paid Claim
B71: All Brands | C71: Insert Guaranteed Amt | D71: Insert Guaranteed Amt | E71: Insert Guaranteed Amt | F71: Insert Guaranteed Amt | G71: Insert Guaranteed Amt | H71: Insert Guaranteed Amt
B72: All Generics | C72: Insert Guaranteed Amt | D72: Insert Guaranteed Amt | E72: Insert Guaranteed Amt | F72: Insert Guaranteed Amt | G72: Insert Guaranteed Amt | H72: Insert Guaranteed Amt
B73: Administration Fees
B74: Per Paid Claim | C74: Insert Guaranteed Amt | D74: Insert Guaranteed Amt | E74: Insert Guaranteed Amt | F74: Insert Guaranteed Amt | G74: Insert Guaranteed Amt | H74: Insert Guaranteed Amt
B75: Per Member Per Month | C75: Insert Guaranteed Amt | D75: Insert Guaranteed Amt | E75: Insert Guaranteed Amt | F75: Insert Guaranteed Amt | G75: Insert Guaranteed Amt | H75: Insert Guaranteed Amt
B77: SPECIALTY (THROUGH YOUR PREFERRED SPECIALTY VENDOR)
C78: Base Contract Term | G78: Optional Contract Term
C79: Year 1 | D79: Year 2 | E79: Year 3 | F79: Year 4 | G79: Year 5 | H79: Year 5
B80: Open Network:
B81: Minimum AWP Discount Guarantee: All Brands | C81: Insert Guaranteed Discount for all brands at Specialty | D81: Insert Guaranteed Discount for all brands at Specialty | E81: Insert Guaranteed Discount for all brands at Specialty | F81: Insert Guaranteed Discount for all brands at Specialty | G81: Insert Guaranteed Discount for all brands at Specialty | H81: Insert Guaranteed Discount for all brands at Specialty
B82: Minimum AWP Discount Guarantee: All Generics | C82: Insert Guaranteed Discount for all generics at Specialty | D82: Insert Guaranteed Discount for all generics at Specialty | E82: Insert Guaranteed Discount for all generics at Specialty | F82: Insert Guaranteed Discount for all generics at Specialty | G82: Insert Guaranteed Discount for all generics at Specialty | H82: Insert Guaranteed Discount for all generics at Specialty
B83: Exclusive Network - Exclusive of Manufacturer Payments
B84: Minimum AWP Discount Guarantee: All Brands | C84: Insert Guaranteed Discount for all brands at Specialty | D84: Insert Guaranteed Discount for all brands at Specialty | E84: Insert Guaranteed Discount for all brands at Specialty | F84: Insert Guaranteed Discount for all brands at Specialty | G84: Insert Guaranteed Discount for all brands at Specialty | H84: Insert Guaranteed Discount for all brands at Specialty
B85: Minimum AWP Discount Guarantee: All Generics | C85: Insert Guaranteed Discount for all generics at Specialty | D85: Insert Guaranteed Discount for all generics at Specialty | E85: Insert Guaranteed Discount for all generics at Specialty | F85: Insert Guaranteed Discount for all generics at Specialty | G85: Insert Guaranteed Discount for all generics at Specialty | H85: Insert Guaranteed Discount for all generics at Specialty
B86: Maximum Dispensing Fee per Paid Claim (Open and Exclusive)
B87: All Brands and Generics | C87: Insert Guaranteed Amt | D87: Insert Guaranteed Amt | E87: Insert Guaranteed Amt | F87: Insert Guaranteed Amt | G87: Insert Guaranteed Amt | H87: Insert Guaranteed Amt
B88: Administration Fees
B89: Per Paid Claim | C89: Insert Guaranteed Amt | D89: Insert Guaranteed Amt | E89: Insert Guaranteed Amt | F89: Insert Guaranteed Amt | G89: Insert Guaranteed Amt | H89: Insert Guaranteed Amt
B90: Per Member Per Month | C90: Insert Guaranteed Amt | D90: Insert Guaranteed Amt | E90: Insert Guaranteed Amt | F90: Insert Guaranteed Amt | G90: Insert Guaranteed Amt | H90: Insert Guaranteed Amt
B92: Compound Drug Claims
C93: Base Contract Term | G93: Optional Contract Term
B94: Level of Effort values (Non-Sterile Only) | C94: Year 1 | D94: Year 2 | E94: Year 3 | F94: Year 4 | G94: Year 5 | H94: Year 6
B95: 11 - Single ingredient batched capsule; any combination of commercially available | C95: Insert LOE Amt | D95: Insert LOE Amt | E95: Insert LOE Amt | F95: Insert LOE Amt | G95: Insert LOE Amt | H95: Insert LOE Amt
B96: 12 - Two or Three ingredient batched capsule; transdermal gel | C96: Insert LOE Amt | D96: Insert LOE Amt | E96: Insert LOE Amt | F96: Insert LOE Amt | G96: Insert LOE Amt | H96: Insert LOE Amt
B97: 13 - Four or more ingredient batched capsule; three or less ingredient cream/ointment/gel: suppository; two or less ingredient capsule: noncomplex suspension; tablet triturate | C97: Insert LOE Amt | D97: Insert LOE Amt | E97: Insert LOE Amt | F97: Insert LOE Amt | G97: Insert LOE Amt | H97: Insert LOE Amt
B98: 14 - Topical containing controlled ingredient; three or more ingredient troche; four or more ingredient capsule; complex suspensions (i.e. pediatric); custom capsule (includes rapid dissolution preparations); chemotherapy cream/ointment/gel; hormone therapy (capsules, troches, and suppositories). | C98: Insert LOE Amt | D98: Insert LOE Amt | E98: Insert LOE Amt | F98: Insert LOE Amt | G98: Insert LOE Amt | H98: Insert LOE Amt
B100: Generic Dispensing Rate (GDR) Guarantee
C101: Base Contract Term | G101: Optional Contract Term
C102: Year 1 | D102: Year 2 | E102: Year 3 | F102: Year 4 | G102: Year 5 | H102: Year 6
B103: Retail GDR Guarantee | C103: Insert Guaranteed Amt | D103: Insert Guaranteed Amt | E103: Insert Guaranteed Amt | F103: Insert Guaranteed Amt | G103: Insert Guaranteed Amt | H103: Insert Guaranteed Amt
B104: Mail GDR Guarantee | C104: Insert Guaranteed Amt | D104: Insert Guaranteed Amt | E104: Insert Guaranteed Amt | F104: Insert Guaranteed Amt | G104: Insert Guaranteed Amt | H104: Insert Guaranteed Amt

Sheet RX-Pricing Other Costs
B3: =Questionnaire!D3 -> Request for PBM Proposal (RFP) for Arlington County Government
B4: RFP No. 21-HRD-RFP-141 - Pharmacy Plan
B5: RX-Pricing, Other Costs
B7: Instructions: Please complete every cell on this worksheet. Your financial offer MUST COMPLY with all Bidding Requirements and requirements in the Financial Questionnaire. All proposed terms are guaranteed. Please indicate the charges/fees associated with the following types of utilization management programs (Include charges for basic and optional programs). If charges vary depending on drug class, put a range in the corresponding cell, (ex.: $0.05-$0.08 PM)
B8: Aon Identification Data
B9: Vendor Name
B12: Other Costs
B13: Clinical Program Fee (Inclusive of all services listed below and any additional clinical programs developed throughout the life of the agreement) | C13: [Insert PMPM fee here]
B14: Services | C14: Included in Pricing? | D14: Basic | E14: Optional
B15: Customized Messages
B16: Checks/Remittance/Processing Charge (unless indicated otherwise)
B17: Charges for on-line adjudication (paid, reversed and denied claims)
B18: Mail order claims integration
B19: Specialty pharmacy claims integration
B20: Toll-Free Numbers for Participants, Pharmacies and Providers
B21: Member welcome packages including ID card production with medical vendor information for each member and delivery to household
B22: Replacement ID cards (production and delivery to household)
B23: Eligibility maintenance and support, including manual eligibility updates as needed
B24: Hard copy of retail network listing when requested
B25: Account management team and support
B26: Designated implementation team and support
B27: Support for open enrollment benefit fairs
B28: Plan design set-up and maintenance
B29: Point of Sale (POS) Manufacturer Payment Administration
B30: Medical Pharmacy accumulator fees for OOPM
B31: CDH support services (including bidirectional connectivity for exchanging accumulators)
B32: SMS Mandated Annual Communications
B33: E-prescribing Fees
B34: Real time Medicare Part B COB
B35: Clinical Programs:
B36: Concurrent Drug Utilization Reviews (CDUR) - Base/Core
B37: Concurrent Drug Utilization Reviews (CDUR) - Optional
B38: Drug utilization review, Retrospective (RDUR) - Base/Core
B39: Drug utilization review, Retrospective (RDUR) - Optional
B40: Controlled substance excessive use (i.e. fraud and abuse) programs - Base/Core
B41: Controlled substance excessive use (i.e. fraud and abuse) programs - Optional
B42: Formulary management
B43: Exception process for formulary exclusions (i.e., PA)
B44: Medication adherence programs (e.g., refill reminders) - Base/Core
B45: Medication adherence programs (e.g., refill reminders) - Optional
B46: Medication Therapy Management programs
B47: Communications to participants about lower cost alternatives (generics, mail, etc.) when available
B48: Member access to web-based drug information
B49: Member access to web-based patient claims history records
B50: Member access to smart phone based drug information
B51: Member access to smart phone based patient claims history records
B52: Appeals (first level, second level and urgent)
B53: Independent medical reviews
B54: ACA external reviews
B55: Electronic Prior Authorization - Base/Core (Does not apply to exclusive specialty)
B56: Prior authorization - Base/Core (Does not apply to exclusive specialty)
B57: Prior authorization - Optional (Does not apply to exclusive specialty)
B58: Quantity duration/level limits (Does not apply to exclusive specialty)
B59: Step therapy protocols. (Does not apply to exclusive specialty)
B60: Disease Management programs - Base/Core (Does not apply to exclusive specialty)
B61: Disease Management programs - Optional (Does not apply to exclusive specialty)
B62: Smoking Cessation program (including counseling)
B63: Please provide a list of clinical programs and associated fees not listed above
B64: Data Reporting:
B65: Access Charge
B66: Access to web-based reporting
B67: Hardware/Software access fees
B68: Member profiling
B69: Pharmacy profiling - Base/Core
B70: Pharmacy profiling - Optional
B71: Physician profiling - Base/Core
B72: Physician profiling - Optional
B73: Standard Reporting Package
B74: Consultant Data Requests
B75: Adhoc reports
B76: Member-Directed Materials:
B77: Claim Forms (e.g., direct member reimbursement, home delivery pharmacy, etc.)
B78: Explanation of Benefits
B79: Hard Copy of Formulary (or preferred drug list)
B80: Communication and Marketing Materials
B81: Toll-Free Numbers for Participants, Pharmacies and Providers
B84: Credits / Allowances
B85: Line of Business | C85: Commercial
B86: ALLOWANCE TYPE | C86: Amount | D86: Basis (Drop Down)
B87: Pre-implementation Audit Credit
B88: Pharmacy Management Fund (PMF) Allowance
B89: Other Credit

Sheet RX-Pricing MFP
B3: =Questionnaire!D3 -> Request for PBM Proposal (RFP) for Arlington County Government
B4: RFP No. 21-HRD-RFP-141 - Pharmacy Plan
B5: RX-Pricing, Manufacturer Payment Bid
B7: Instructions: Please complete every cell on this worksheet. For retail, please propose pricing for your broadest retail network. Your financial offer MUST COMPLY with all Bidding Requirements and requirements in the Financial Questionnaire. All proposed terms are guaranteed.
B8: Aon Identification Data
B9: Vendor Name
B12: BASED ON ALL PLAN DESIGNS WITHIN EXCLUSION FORMULARY | C12: Guaranteed Manufacturer Payment Amount Per Brand Rx
C14: Base Contract Term | G14: Optional Contract Term ((2) one year extensions))
B15: Manufacturer Payment Percentage shared with the Plan | C15: 100% | D15: 100% | E15: 100% | F15: 100% | G15: 100% | H15: 100%
B16: Guaranteed Minimum Manufacturer Payment per Paid Claim
B17: Name of Formulary Proposed | C17: Please insert the Name of the Formulary Proposed
B18: Number of Excluded Products on Formulary as of today | C18: Please specify the number of excluded products on Formulary
C19: Year 1 | D19: Year 2 | E19: Year 3 | F19: Year 4 | G19: Year 5 | H19: Year 6
B20: Per Retail Brand Claim | C20: Guaranteed Manufacturer Payment per Paid Brand Claim | D20: Guaranteed Manufacturer Payment per Paid Brand Claim | E20: Guaranteed Manufacturer Payment per Paid Brand Claim | F20: Guaranteed Manufacturer Payment per Paid Brand Claim | G20: Guaranteed Manufacturer Payment per Paid Brand Claim | H20: Guaranteed Manufacturer Payment per Paid Brand Claim
B21: Per Retail 90 Brand Claim | C21: Guaranteed Manufacturer Payment per Paid Brand Claim | D21: Guaranteed Manufacturer Payment per Paid Brand Claim | E21: Guaranteed Manufacturer Payment per Paid Brand Claim | F21: Guaranteed Manufacturer Payment per Paid Brand Claim | G21: Guaranteed Manufacturer Payment per Paid Brand Claim | H21: Guaranteed Manufacturer Payment per Paid Brand Claim
B22: Per Mail and "Mail at Retail" Brand Claim (excluding Specialty) | C22: Guaranteed Manufacturer Payment per Paid Brand Claim | D22: Guaranteed Manufacturer Payment per Paid Brand Claim | E22: Guaranteed Manufacturer Payment per Paid Brand Claim | F22: Guaranteed Manufacturer Payment per Paid Brand Claim | G22: Guaranteed Manufacturer Payment per Paid Brand Claim | H22: Guaranteed Manufacturer Payment per Paid Brand Claim
B23: Per Retail Specialty Brand Claim (Non-preferred specialty vendor) | C23: Guaranteed Manufacturer Payment per Paid Brand Claim | D23: Guaranteed Manufacturer Payment per Paid Brand Claim | E23: Guaranteed Manufacturer Payment per Paid Brand Claim | F23: Guaranteed Manufacturer Payment per Paid Brand Claim | G23: Guaranteed Manufacturer Payment per Paid Brand Claim | H23: Guaranteed Manufacturer Payment per Paid Brand Claim
B24: Per Specialty Brand Claim (Preferred Specialty Pharmacy) | C24: Guaranteed Manufacturer Payment per Paid Brand Claim | D24: Guaranteed Manufacturer Payment per Paid Brand Claim | E24: Guaranteed Manufacturer Payment per Paid Brand Claim | F24: Guaranteed Manufacturer Payment per Paid Brand Claim | G24: Guaranteed Manufacturer Payment per Paid Brand Claim | H24: Guaranteed Manufacturer Payment per Paid Brand Claim
B26: BASED ON ALL PLAN DESIGNS WITHIN OPEN FORMULARY | C26: Guaranteed Manufacturer Payment Amount Per Brand Rx
C28: Base Contract Term
B29: Manufacturer Payment Percentage shared with the Plan | C29: 100% | D29: 100% | E29: 100% | F29: 100% | G29: 100% | H29: 100%
B30: Guaranteed Minimum Manufacturer Payment per Paid Claim
B31: Name of Formulary Proposed | C31: Please insert the Name of the Formulary Proposed
C32: Year 1 | D32: Year 2 | E32: Year 3 | F32: Year 4 | G32: Year 5 | H32: Year 6
B33: Per Retail Brand Claim | C33: Guaranteed Manufacturer Payment per Paid Brand Claim | D33: Guaranteed Manufacturer Payment per Paid Brand Claim | E33: Guaranteed Manufacturer Payment per Paid Brand Claim | F33: Guaranteed Manufacturer Payment per Paid Brand Claim | G33: Guaranteed Manufacturer Payment per Paid Brand Claim | H33: Guaranteed Manufacturer Payment per Paid Brand Claim
B34: Per Retail 90 Brand Claim | C34: Guaranteed Manufacturer Payment per Paid Brand Claim | D34: Guaranteed Manufacturer Payment per Paid Brand Claim | E34: Guaranteed Manufacturer Payment per Paid Brand Claim | F34: Guaranteed Manufacturer Payment per Paid Brand Claim | G34: Guaranteed Manufacturer Payment per Paid Brand Claim | H34: Guaranteed Manufacturer Payment per Paid Brand Claim
B35: Per Mail and "Mail at Retail" Brand Claim (excluding Specialty) | C35: Guaranteed Manufacturer Payment per Paid Brand Claim | D35: Guaranteed Manufacturer Payment per Paid Brand Claim | E35: Guaranteed Manufacturer Payment per Paid Brand Claim | F35: Guaranteed Manufacturer Payment per Paid Brand Claim | G35: Guaranteed Manufacturer Payment per Paid Brand Claim | H35: Guaranteed Manufacturer Payment per Paid Brand Claim
B36: Per Retail Specialty Brand Claim (Non-preferred specialty vendor) | C36: Guaranteed Manufacturer Payment per Paid Brand Claim | D36: Guaranteed Manufacturer Payment per Paid Brand Claim | E36: Guaranteed Manufacturer Payment per Paid Brand Claim | F36: Guaranteed Manufacturer Payment per Paid Brand Claim | G36: Guaranteed Manufacturer Payment per Paid Brand Claim | H36: Guaranteed Manufacturer Payment per Paid Brand Claim
B37: Per Specialty Brand Claim (Preferred Specialty Pharmacy) | C37: Guaranteed Manufacturer Payment per Paid Brand Claim | D37: Guaranteed Manufacturer Payment per Paid Brand Claim | E37: Guaranteed Manufacturer Payment per Paid Brand Claim | F37: Guaranteed Manufacturer Payment per Paid Brand Claim | G37: Guaranteed Manufacturer Payment per Paid Brand Claim | H37: Guaranteed Manufacturer Payment per Paid Brand Claim

Sheet RX-Pricing Specialty Drugs
B3: =Questionnaire!D3 -> Request for PBM Proposal (RFP) for Arlington County Government
B4: RFP No. 21-HRD-RFP-141 - Pharmacy Plan
B5: RX-Pricing, Specialty Drug List (Preferred Specialty Pharmacy/Mail)
B7: Aon Identification Data
B8: Vendor Name
B10: Instructions: Please provide your list in alphabetic order by therapeutic class description; within in each therapeutic class description, please list the drug names in alphabetical order. All columns must be completed for each product listed.
B11: Discount is % off AWP on a post-rollback basis Please use the GPI-4 Indicator for Therapeutic Class ID | K11: Biosimilar | L11: New to Market Specialty Drug | M11: Limited Distribution | N11: Is Your Preferred Specialty Pharmacy a Limited Distribution Vendor? | O11: Specialty Retail (If not included in Non-Specialty Retail) | Q11: Open Network Guaranteed Terms | S11: Exclusive Network Guaranteed Terms
B12: Therapeutic Class ID GPI-4 | C12: Therapeutic Class Description (GPI-4) | D12: Generic Drug Identifier (e.g. GCN or full GPI) | E12: Drug Name | F12: Strength | G12: NDC | H12: Dosage Form | I12: Launch Date | J12: Brand/ Generic | K12: Yes / No | L12: Yes / No | M12: Yes / No | N12: Yes / No | O12: Discount | P12: Disp Fee | Q12: Discount | R12: Disp Fee | S12: Discount | T12: Disp Fee

Sheet RX-Pricing Projections
B3: =Questionnaire!D3 -> Request for PBM Proposal (RFP) for Arlington County Government
B4: RFP No. 21-HRD-RFP-141 - Pharmacy Plan
B5: RX-Pricing, Projections
B7: Instructions: Please complete every cell on this worksheet. Your offer MUST COMPLY with all Bidding Requirements and requirements in the Financial Questionnaire and reflect the pricing inputs in the Rx, Pricing Sections of this workbook.
B8: Aon Identification Data
B9: Vendor Name
B13: Calculation | C13: Spend Component | D13: Year 1 | E13: Year 2 | F13: Year 3 | G13: Year 4 | H13: Year 5 | I13: Year 6
D14: Base Contract Term | H14: Optional Contract Term ((2) one year extensions))
B15: 1 | C15: Ingredient Costs | D15: [Insert Response] | E15: [Insert Response] | F15: [Insert Response] | G15: [Insert Response] | H15: [Insert Response] | I15: [Insert Response]
B16: 2 | C16: Dispensing Fees | D16: [Insert Response] | E16: [Insert Response] | F16: [Insert Response] | G16: [Insert Response] | H16: [Insert Response] | I16: [Insert Response]
B17: 3 (1+2) | C17: Projected Costs | D17: [Insert Response] | E17: [Insert Response] | F17: [Insert Response] | G17: [Insert Response] | H17: [Insert Response] | I17: [Insert Response]
B18: 4 | C18: Administrative Fees | D18: [Insert Response] | E18: [Insert Response] | F18: [Insert Response] | G18: [Insert Response] | H18: [Insert Response] | I18: [Insert Response]
B19: 5 | C19: Clinical Program Fees | D19: [Insert Response] | E19: [Insert Response] | F19: [Insert Response] | G19: [Insert Response] | H19: [Insert Response] | I19: [Insert Response]
B20: 6 | C20: Total Manufacturer Payments (guarantees) | D20: [Insert Response] | E20: [Insert Response] | F20: [Insert Response] | G20: [Insert Response] | H20: [Insert Response] | I20: [Insert Response]
B21: 3+4+5-6 | C21: Total Net Drug Spend | D21: [Insert Response] | E21: [Insert Response] | F21: [Insert Response] | G21: [Insert Response] | H21: [Insert Response] | I21: [Insert Response]

Sheet Account Team (hidden)
B3: =Questionnaire!D3 -> Request for PBM Proposal (RFP) for Arlington County Government
B4: Account Management
B6: Instructions: Please complete every cell on this worksheet. Your offer MUST COMPLY with all Bidding Requirements and requirements in the Financial Questionnaire. All proposed terms are guaranteed.
B7: Aon Identification Data
B8: Vendor Name
B12: Account Team Role | C12: Proposed Account Team for [Client Name]
B13: Executive Sponsor
B14: Name | C14: [Insert Response]
B15: Title | C15: [Insert Response]
B16: Length of Service | C16: [Insert Response]
B17: Account Executive
B18: Name | C18: [Insert Response]
B19: Total Number of Clients under Management | C19: [Insert Response]
B20: Total Number of Lives under Management | C20: [Insert Response]
B21: Length of Service | C21: [Insert Response]
B22: Account Manager
B23: Name | C23: [Insert Response]
B24: Total Number of Clients under Management | C24: [Insert Response]
B25: Total Number of Lives under Management | C25: [Insert Response]
B26: Length of Service | C26: [Insert Response]
B27: Clinical Account Manager
B28: Name | C28: [Insert Response]
B29: Credentials | C29: [Insert Response]
B30: Total Number of Clients under Management | C30: [Insert Response]
B31: Total Number of Lives under Management | C31: [Insert Response]
B32: Length of Service | C32: [Insert Response]
B33: Financial Analyst
B34: Name | C34: [Insert Response]
B35: Length of Service | C35: [Insert Response]

Sheet Geo Access Request (hidden)
B3: =Questionnaire!D3 -> Request for PBM Proposal (RFP) for Arlington County Government
B4: Geo-Access
B6: Instructions: Please complete every cell on this worksheet, based on the access standards specified below.
B7: Aon Identification Data
B8: Vendor Name
A12: 1 | B12: Network #1: Broadest Retail Network: | D12: Mileage Standard Measured in Driving Distance
D13: Urban (1.5 M) | E13: Suburban (3 M) | F13: Rural (10 M) | G13: Total
B14: A. | C14: Total number of network pharmacies within access standard
B15: B. | C15: Number of members on census file
B16: C. | C16: Number of members included in geo-analysis
B17: D. | C17: Number of members not included in geo-analysis
B18: E. | C18: Number of members with access to at least one network pharmacy within standard
B19: F. | C19: Number of members without access to at least one network pharmacy within standard (Line C-E)
B20: G. | C20: Number of members without access because no pharmacy exists within access standard
B21: H. | C21: Number of members without access because a pharmacy exists but is not in the proposed network (Line F-G)
C24: Questions
B25: 2 | C25: Explain why the members in D. were not included in the geo-analysis for the proposed network.
B26: 3 | C26: Please attach a listing of those pharmacies identified in Line H above, including:
C27: NCPDP number
C28: Name of Pharmacy
C29: Address (Street, city, state, zip)
B30: 4 | C30: Please attach a summary of the zip codes where access standards are not met.
B31: 5 | C31: Briefly describe your methodology for geo-analysis, including:
C32: software used and when last updated
C33: definition of distance if not driving distance
C34: other assumptions and approach
A37: 6 | B37: Network #2: Retail 90 Network: | D37: Mileage Standard Measured in Driving Distance
D38: Urban (1.5 M) | E38: Suburban (3 M) | F38: Rural (10 M) | G38: Total
B39: A. | C39: Total number of network pharmacies within access standard
B40: B. | C40: Number of members on census file
B41: C. | C41: Number of members included in geo-analysis
B42: D. | C42: Number of members not included in geo-analysis
B43: E. | C43: Number of members with access to at least one network pharmacy within standard
B44: F. | C44: Number of members without access to at least one network pharmacy within standard (Line C-E)
B45: G. | C45: Number of members without access because no pharmacy exists within access standard
B46: H. | C46: Number of members without access because a pharmacy exists but is not in the proposed network (Line F-G)
C48: Questions
B49: 7 | C49: Explain why the members in D. were not included in the geo-analysis for the proposed network.
B50: 8 | C50: Please attach a listing of those pharmacies identified in Line H above, including:
C51: NCPDP number
C52: Name of Pharmacy
C53: Address (Street, city, state, zip)
B54: 9 | C54: Please attach a summary of the zip codes where access standards are not met.
B55: 10 | C55: Briefly describe your methodology for geo-analysis, including:
C56: software used and when last updated
C57: definition of distance if not driving distance
C58: other assumptions and approach

Sheet Hold Harmless (hidden)
B3: =Questionnaire!D3 -> Request for PBM Proposal (RFP) for Arlington County Government
B4: Hold Harmless Language
B6: You agree to the following Hold Harmless language:
B8: Hold Harmless
B9: By submitting a response to this RFP, you agree to indemnify and hold harmless Aon, its directors, officers, employees and agents against any and all liability, loss, damage or expense (including reasonable attorney’s fees and costs) which may arise or result from your fraudulent or willful misconduct or from your responses to and participation in this RFP solicitation.

Sheet Officer Statement (hidden)
B3: =Questionnaire!D3 -> Request for PBM Proposal (RFP) for Arlington County Government
B4: Officer Certification
B6: Please have an Officer review and sign this worksheet to confirm the information is valid.
B7: Please include the completed form with your proposal.
B9: OFFICER'S STATEMENT
B10: PBM Vendor Legal Name
B11: PBM Vendor Marketing Name
B12: Street Address
B13: City
B14: State
B15: Zip
B16: Phone Number
B17: Fax Number
B18: Web Address
B19: Name of Officer completing statement
B20: Title of Officer completing statement
B21: Phone Number of Officer completing statement
B22: Email Address of Officer completing statement
B25: I certify that our response to Aon's Request for Proposal is complete and accurate to the best of my knowledge and contains no material omissions or misstatements. I acknowledge that Aon's clients will rely upon the information included in our response to make decisions concerning the pharmacy benefit management services that are offered to their employees.
B29: Officer's Signature
B32: Date Signed

Sheet Explanation
B3: =Questionnaire!D3 -> Request for PBM Proposal (RFP) for Arlington County Government
B4: RFP No. 21-HRD-RFP-141 - Pharmacy Plan
B5: Explanation
B7: This worksheet should be used to provide additional explanations for any questions for which a "See Explanation" response
B8: was given. Explanations must be numbered to correspond to the question to which they pertain and they must be brief.
B10: State the number of questions you addressed with further explanation:
B12: Section/ Question # | C12: Explanation
